Workbook

Sheet 1. Начальные данные
U1: Версия: | V1: 3.0м
A12: Отчет по внутреннему финансовому контролю
A17: Наименование МО: | D17: МР Нуримановский район РБ
A18: По состоянию на: | D18: 31 декабря | F18: 2017 года
A20: Исполнитель: | D20: Гайнетдинова Олеся Николаевна
A21: Рабочий телефон: | D21: 8-34776-2-21-02
A22: Мобильный телефон: | D22: 8-961-370-72-72
C26: =IF(N30=0,"","Ошибки:") ->  | D26: =O26 ->  | O26: =CONCATENATE(M27,M28,M29) -> 
M27: =IF(OR(D17=0, D17="[выберите учреждение]"), "Не выбрано наименование учреждения! "&CHAR(10),"") ->  | N27: =IF(OR(D17=0, D17="[выберите учреждение]"), 1,"") -> 
M28: =IF(OR(D18=0, D18="[выберите дату]",F18=0, F18="[выберите год]"), "Не выбрана дата! "&CHAR(10),"") ->  | N28: =IF(OR(D18=0, D18="[выберите дату]",F18=0, F18="[выберите год]"), 1,"") -> 
M29: =IF(OR(LEN(D22)<9,D22="[наберите на клавиатуре]"),""&CHAR(10),"") ->  | N29: =IF(OR(LEN(D22)<9,D22="[наберите на клавиатуре]"),1,"") -> 
N30: =SUM(N26:N29) -> 0

Sheet 2. Пров.суммы
A1: Сведения о проверенных средствах
A2: =CONCATENATE('1. Начальные данные'!D18," ",'1. Начальные данные'!F18) -> 31 декабря 2017 года
A3: ='1. Начальные данные'!D17 -> МР Нуримановский район РБ
E4: в тыс.рублей
A5: Наименование бюджета | B5: Проверено в 2017 году по средствам
B6: 2014 года | C6: 2015 года | D6: 2016 года | E6: 2017 года
A7: Средства бюджета Республики Башкортостан | B7: 2241 | C7: 10710.9 | D7: 8992.3 | E7: 2050.7
A8: Средства бюджета муниципального образования | B8: 6033.7 | C8: 6116.9 | D8: 7183.6 | E8: 5923.2
A9: Прочие средства и средства, полученные от оказания платных услуг и осуществления иной приносящей доход деятельности | C9: 14606 | D9: 13752 | E9: 15181
A10: Проверено всего | B10: =SUM(B7:B9) -> 8274.7 | C10: =SUM(C7:C9) -> 31433.8 | D10: 29927.9 | E10: 23154.9

Sheet 3. Объяснительная
A1: Объяснительная (свод) к сведениям о результатах проведенных контрольных мероприятий
A2: =CONCATENATE('1. Начальные данные'!D18," ",'1. Начальные данные'!F18) -> 31 декабря 2017 года
A3: ='1. Начальные данные'!D17 -> МР Нуримановский район РБ
AA4: в тыс.руб.
A5: Наименование | B5: Номер | F5: Итого | K5: В использовании средств
K6: бюджета РБ | P6: бюджета МО | U6: полученных от предпр-ой и иной приносящей доход деятельности | Z6: прочих
A7: 1 | B7: 2 | F7: 3 | K7: 4 | P7: 5 | U7: 6 | Z7: 7
A8: СУММА ФИНАНСОВЫХ НАРУШЕНИЙ | B8: 16 | F8: =F9+F41+F124+F126+F130+F172+F175+F266 -> 3313.3 | K8: =K9+K41+K124+K126+K130+K172+K175+K266 -> 0 | P8: =P9+P41+P124+P126+P130+P172+P175+P266 -> 3313.3 | U8: =U9+U41+U124+U126+U130+U172+U175+U266 -> 0 | Z8: =Z9+Z41+Z124+Z126+Z130+Z172+Z175+Z266 -> 0
A9: Нецелевое использование средств | B9: 17 | F9: =SUM(F10:J40) -> 27 | K9: =SUM(K10:O40) -> 0 | P9: =SUM(P10:T40) -> 27 | U9: =SUM(U10:Y40) -> 0 | Z9: =SUM(Z10:AD40) -> 0
A10: Использование бюджетных кредитов не по назначению | B10: 17.1.2.19. | F10: =SUM(K10:AD10) -> 0
A11: Не соблюдение условий возмездности и возвратности при предоставлении бюджетных кредитов | B11: 17.1.2.20. | F11: 0
A12: Выделение и направление средств бюджетной системы организациям, учредительными документами которых не предусмотрено осуществление соответствующей деятельности. | B12: 17.1.2.34. | F12: 0
A13: Распределение главными распорядителями (распорядителями) бюджетных ассигнований и лимитов бюджетных обязательств распорядителям и получателям бюджетных средств, не включенным в реестр расходных обязательств. | B13: 17.1.2.35. | F13: 0
A14: Финансирование объектов и строек, не включенных в Перечень строек и объектов для государственных (муниципальных) нужд; капитальных вложений, не предусмотренных проектно-сметной документацией или при отсутствии утвержденной проектно-сметной документации на соответствующие объекты. | B14: 17.1.2.6. | F14: 0
A15: Использование бюджетных средств на оплату расходов на строительство объектов и строек, не включенных в титульные списки, по которым финансирование в установленном порядке не предусмотрено. | B15: 17.1.2.7. | F15: 0
A16: Направление средств целевых бюджетных фондов в нарушение порядка, установленного соответствующими нормативно-правовыми актами. | B16: 17.1.2.8. | F16: =SUM(K16:AD16) -> 0
A17: Использование бюджетных средств (принятие и исполнение денежных обязательств) на оплату расходов, подлежащих исполнению за счет средств других бюджетов бюджетной системы РФ. | B17: 17.2.1.1. | F17: 0
A18: Использование бюджетных средств на оплату расходов на строительство объектов и строек, не включенных в титульные списки, по которым финансирование в установленном порядке не предусмотрено. | B18: 17.2.1.10. | F18: 0
A19: Использование средств, выделенных на проведение текущего и (или) капитального ремонта в качестве оплаты работ по реконструкции, новому строительству и наоборот. | B19: 17.2.1.11. | F19: 0
A20: Использование остатка бюджетных средств на конец года на покрытие расходов следующего года (включая остаток в кассе и в подотчете сотрудников) в нарушение нормативно-правовых актов и (или) условий государственных контрактов (договоров). | B20: 17.2.1.12. | F20: 0
A21: Восстановление за счет бюджетных средств расходов, произведенных ранее за счет иных источников. | B21: 17.2.1.13. | F21: 0
A22: Несанкционированное перераспределение бюджетных средств, выделенных по одному разделу / подразделу классификации расходов бюджета на оплату расходов, относимых по другому разделу / подразделу. | B22: 17.2.1.14. | F22: 0
A23: Несанкционированное перераспределение бюджетных средств, выделенных по одной целевой статье классификации расходов бюджета на оплату расходов, относимых по другой статье (в том числе по средствам, полученным в кассу бюджетного учреждения). | B23: 17.2.1.15. | F23: 0
A24: Несанкционированное перераспределение бюджетных средств, выделенных по одному виду расходов классификации расходов бюджета на оплату расходов, относимых по другому виду расходов (в том числе по средствам, полученным в кассу бюджетного учреждения). | B24: 17.2.1.16. | F24: 0
A25: Несанкционированное перераспределение средств, выделенных по одной статье расходов операций сектора государственного управления на оплату расходов, относимых по другой статье (в том числе по средствам, полученным в кассу бюджетного учреждения). | B25: 17.2.1.17. | F25: =SUM(K25:AD25) -> 0
A26: Направление и использование бюджетных средств по целевым программам при отсутствии необходимых оправдательных документов. | B26: 17.2.1.18. | F26: 0
A27: Использование субвенций и субсидий в нарушение условий их предоставления. | B27: 17.2.1.19. | F27: 0
A28: Использование бюджетных средств (принятие и исполнение денежных обязательств) на оплату расходов, которые должны осуществляться за счет доходов от предпринимательской и иной приносящей доход деятельности или иных источников. | B28: 17.2.1.2. | F28: 27 | P28: 27
A29: Другие нарушения в части нецелевого использования бюджетных средств | B29: 17.2.1.20. | F29: 0
A30: Использование бюджетных средств (принятие и исполнение денежных обязательств) на оплату пособий, компенсаций, субсидий и других денежных выплат лицам, не имеющим правовых оснований для их получения. | B30: 17.2.1.3. | F30: 0
A31: Перечисление неиспользованных остатков бюджетных средств на счета других юридических лиц или на счет по учету средств, полученных от предпринимательской и иной приносящей доход деятельности. | B31: 17.2.1.4. | F31: 0
A32: Использование бюджетных средств на оплату товаров, работ, услуг, не связанных с деятельностью получателя бюджетных средств, на оказание финансовой помощи коммерческим организациям или на их создание. | B32: 17.2.1.5. | F32: 0
A33: Использование бюджетных средств на оплату расходов, не предусмотренных сметой доходов и расходов (бюджетной сметой с 01.01.2008 года), либо иным правовым основаниям их получения в финансовом году. | B33: 17.2.1.6. | F33: 0
A34: Использование средств целевого бюджетного финансирования (в рамках реализации приоритетных национальных проектов, целевых программ и т.д.), бюджетных кредитов, бюджетных инвестиций не по назначению - на цели, не соответствующие условиям, определенным соответствующим нормативным актом. | B34: 17.2.1.7. | F34: 0
A35: Использование бюджетных средств получателями на цели, не соответствующие условиям, определенным законодательством, регулирующим их деятельность. | B35: 17.2.1.8. | F35: 0
A36: Использование бюджетных средств на оплату расходов на строительство объектов и строек, не предусмотренных проектно-сметной документацией или при отсутствии утвержденной проектно-сметной документации, экспертизы проекта. | B36: 17.2.1.9. | F36: 0
A37: Нецелевое использование субсидии автономным и бюджетным учреждением | B37: 17.2.1.20.1. | F37: 0
A38: Нецелевое использование субсидии автономным и бюджетным учреждением, предусмотренныена содержание имущества | B38: 17..2.1.20.2. | F38: 0
A39: Нецелевое использование субсидии. Нарушение по условиям соглашений в части софинансирования соответствующих обязательств за счет средств местного бюджета (полученная субсидия, предусмотренная по соглашению направлена на иные цели ) | B39: 17..2.1.20.3 | F39: =SUM(K39:AD39) -> 0
A40: Расходование средств, полученных от предпринимательской и иной приносящей доход деятельности, на цели, не предусмотренные сметой доходов и расходов (бюджетной сметой с 01.01.2008 года) бюджетного учреждения. | B40: 17.5.2.2. | F40: 0
A41: Неэффективное использование материальных ресурсов и денежных средств | B41: 18 | F41: =SUM(K41:AD41) -> 103 | K41: =SUM(K42:O123) -> 0 | P41: =SUM(P42:T123) -> 103 | U41: =SUM(U42:Y123) -> 0 | Z41: =SUM(Z42:AD123) -> 0
A42: Неправомерное предоставление льгот, отсрочек, рассрочек по обязательным платежам в бюджет, налоговых кредитов и налоговых инвестиционных кредитов, а также отсутствие соответвующего контроля за выполнением условий, на которых были предоставлены льготы, отсрочки, рассрочки по платежам в бюджет, налоговые кредиты и налоговые инвестиционные кредиты. | B42: 18.1.1.1. | F42: =SUM(K42:AD42) -> 0
A43: Нарушение порядка распоряжения объектом нежилого фонда, находящимся в государственной собственности Республики Башкортостан или муниципальной собственности, и использования указанного объекта. Предоставление государственного (муниципального) имущества без согласия собственника в пользование, без получения доходов от его использования в соответствующий бюджет. | B43: 18.1.1.11. | F43: =SUM(K43:AD43) -> 0
A44: Неправомерное предоставление льгот, отсрочек, рассрочек по платежам за пользование государственным (муниципальным) имуществом. | B44: 18.1.1.13. | F44: 0
A45: Неправомерное списание задолженности по налогам и другим обязательным платежам. | B45: 18.1.1.2. | F45: 0
A46: Непринятие мер по взысканию недоимки по налогам, сборам и обязательным платежам в доход бюджета, в том числе отсутствие контроля за правильностью исчисления, полнотой и своевременностью уплаты, начисления и учета, взыскания и принятия решений о возврате (зачете) излишне уплаченных (взысканных) платежей, пеней и штрафов по ним. | B46: 18.1.1.3. | F46: 0
A47: Неперечисление (несвоевременное или неполное перечисление) в бюджет средств, полученных от распоряжения государственной (муниципальной) собственностью, использования государственной (муниципальной) собственности, предоставления государственных (муниципальных) услуг. | B47: 18.1.1.5. | F47: 0
A48: Неправомерное использование доходов, полученных сверх утвержденных законом о бюджете. | B48: 18.1.2.10. | F48: 0
A49: Неправомерное финансирование федеральных органов государственной власти и организаций за счет средств бюджетов субъектов РФ и (или) местных бюджетов (при отсутствии правовых оснований). | B49: 18.1.2.11. | F49: 0
A50: Неправомерное финансирование расходных обязательств Республики Башкортостан за счет средств местных бюджетов (при отсутствии правовых оснований). | B50: 18.1.2.12. | F50: 0
A51: Неправомерное финансирование местных органов власти и организаций за счет средств бюджета Республики Башкортостан (при отсутствии правовых оснований). | B51: 18.1.2.13. | F51: 0
A52: Нарушение сроков подтверждения денежных обязательств, влекущее выплату пени, штрафов. | B52: 18.1.2.18. | F52: 0
A53: Не соблюдение условий возмездности и возвратности при предоставлении бюджетных кредитов | B53: 18.1.2.20. | F53: 0
A54: Предоставление бюджетных кредитов с нарушением закона (решения) о бюджете. | B54: 18.1.2.22. | F54: 0
A55: Неправомерное осуществление государственных (муниципальных) заимствований. | B55: 18.1.2.26. | F55: 0
A56: Предоставление бюджетных инвестиций без оформления доли Республики Башкортостан (муниципального образования) в уставных (складочных) капиталах юридических лиц. | B56: 18.1.2.29. | F56: 0
A57: Осуществление бюджетных инвестиций в объекты государственной и муниципальной собственности с нарушением установленного порядка. | B57: 18.1.2.30. | F57: 0
A58: Нарушение порядка размещения бюджетных средств на банковских депозитах или передачи их в доверительное управление.Неэффективное размещение государственных средств в кредитных организациях. | B58: 18.1.2.33. | F58: 0
A59: Другие нарушения, влекущие правонарушения в сфере исполнения бюджета по расходам. | B59: 18.1.2.36. | F59: 0
A60: Финансирование расходов, не предусмотренных законом о бюджете и (или) бюджетной росписью. | B60: 18.1.2.5. | F60: 0
A61: Финансирование расходов, не предусмотренных законом о бюджете и (или) бюджетной росписью. | B61: 18.1.2.5. | F61: 0
A62: Направление средств резервных фондов на цели, отличные от их назначения (в нарушение порядка, установленного соответствующими нормативно-правовыми актами). | B62: 18.1.2.9. | F62: 0
A63: Начисление выплат по заработной плате по вредности | B63: 18.2.2.3. | F63: 0
A64: Закупки товаров, работ и услуг сверх установленных законодательством сумм без заключения государственных (муниципальных) контрактов (в т.ч. необоснованное дробление объемов работ, закупок при размещении заказов). | B64: 18.2.3.1. | F64: 0
A65: Приобретение товарно-материальных ценностей, выполнение работ, оказание услуг по завышенным ценам в результате указания в конкурсной и иной документации завышенной начальной цены контракта по сравнению со средней рыночной ценой в регионе. | B65: 18.2.3.10. | F65: 0
A66: Иные нарушения при осуществлении государственных (муниципальных) закупок и исполнении государственных (муниципальных) контрактов, договоров. | B66: 18.2.3.11. | F66: 43.3 | P66: 43.3
A67: Иные нарушения при осуществлении государственных (муниципальных) закупок и исполнении государственных (муниципальных) контрактов, договоров (приобретение жилых помещений для детей-сирот не соответствующих техническому заданию контракта). | B67: 18.2.3.11.1. | F67: 0
A68: Закупки, в которых выявлены нарушения при применении заказчиком мер ответственности и совершения иных действий в случае нарушения поставщиком (подрядчиком, исполнителем) условий контракта | B68: 18.2.3.11.2. | F68: 0
A69: Закупки, в которых выявлено несоответствие поставленного товара выполненной работы (ее результата) или оказанной услуги условиям контракта | B69: 18.2.3.11.3. | F69: 0
A70: Закупки, в которых выявлены нарушения в части своевременности, полноты и достоверности отражения в документах учета поставленного товара. Выполненной работы (ее результата) или оказанной услуги | B70: 18.2.3.11.4. | F70: 0
A71: Закупки, в которых выявлено несоответствие использования поставленного товара, выполненной работы (ее результата) или оказанной услуги целям осуществления закупки | B71: 18.2.3.11.5. | F71: 0
A72: Неправомерное получение кредита бюджетным учреждением | B72: 18.2.3.12. | F72: 0
A73: Дебиторская задолженность по оплате товаров (работ, услуг) (в случаях, когда авансирование договором не предусмотрено, либо перечисление аванса произведено в размерах, превышающих размеры, установленные действующим законодательством). | B73: 18.2.3.13. | F73: 0
A74: Дебиторская задолженность по оплате работ по текущему и капитальному ремонту, реконструкции и строительству (в случаях, когда авансирование договором не предусмотрено, либо перечисление аванса произведено в размерах, превышающих размеры, установленные действующим законодательством). | B74: 18.2.3.14. | F74: 0
A75: Несоблюдение нормативов финансовых затрат на оказание государственных или муниципальных услуг. | B75: 18.2.3.15. | F75: 0
A76: Не соблюдение стандартов расходов на содержание органов государственной власти (местного самоуправления) (в т.ч. завышение норм занимаемых площадей). | B76: 18.2.3.16. | F76: 0
A77: Расходование бюджетных средств с затратами сверх необходимого (возможного) на получение требуемого результата. | B77: 18.2.3.17. | F77: 0
A78: Расходование бюджетных средств без достижения требуемого результата. | B78: 18.2.3.18. | F78: 33.1 | P78: 33.1
A79: Оплата работ, которые должны выполняться для бюджетных учреждений бесплатно. | B79: 18.2.3.19. | F79: 0
A80: Осуществление государственных, муниципальных закупок, размещения заказа на поставки товаров, выполнение работ, оказание услуг для государственных и муниципальных нужд, без проведения процедур, предусмотренных законодательством. | B80: 18.2.3.2. | F80: 0
A81: Отсутствие, несвоевременное принятие локальных правовых актов, определяющих порядок использования средств бюджетной системы. | B81: 18.2.3.20. | F81: 0
A82: Неэффективное использование бюджетных средств вследствие приобретения или списания некачественной продукции или продукции с истекшим сроком хранения (использования). | B82: 18.2.3.21. | F82: 0
A83: Неэффективное использование бюджетных средств вследствие реализации материальных ресурсов по заниженным ценам, либо по ценам приобретения без учета действующих на момент реализации рыночных цен. | B83: 18.2.3.22. | F83: 0
A84: Неэффективное использование бюджетных средств вследствие необоснованного применения норм естественной убыли. | B84: 18.2.3.23. | F84: 0
A85: Неэффективное использование бюджетных средств вследствие неоприходования стоимости материалов, полученных от разборки объектов основных средств. | B85: 18.2.3.24. | F85: 0
A86: Неэффективное использование бюджетных средств в результате возмещения учреждением (организацией) материального ущерба и морального вреда, причиненного действиями работника. | B86: 18.2.3.25. | F86: 0
A87: Неэффективное использование бюджетных средств вследствие приобретения неиспользуемого оборудования, либо ремонт такого оборудования и имущества. | B87: 18.2.3.26. | F87: 0
A88: Неэффективное использование бюджетных средств вследствие недобора платы за проживание и коммунальные услуги с лиц, занимающих жилые помещения, состоящие на балансе учреждения. | B88: 18.2.3.27. | F88: 0
A89: Неэффективное использование бюджетных средств вследствие образования дебиторской задолженности по заработной плате за уволенными работниками. | B89: 18.2.3.28. | F89: =SUM(K89:AD89) -> 0
A90: Образование кредиторской задолженности вследствие принятия организаций дополнительных обязательств в результате нарушения режима экономии средств. | B90: 18.2.3.29. | F90: 0
A91: Не соблюдение требований законодательства о размещении заказов на поставки товаров, выполнение работ, оказание услуг для государственных и муниципальных нужд при осуществлении конкурсных, аукционных процедур и процедур запроса котировок. | B91: 18.2.3.3. | F91: 0
A92: Неполное либо несвоевременное перечисление бюджетным учреждением платежей в бюджет и государственные внебюджетные фонды, повлекшее начисление финансовых санкций. | B92: 18.2.3.30. | F92: 0
A93: Иные нарушения в части неэффективного использования бюджетных средств. | B93: 18.2.3.31. | F93: 8.6 | P93: 8.6
A94: Иные нарушения в части неэффективного использования бюджетных средств. Оплата транспортного налога за неэксплуатируемый транспорт. | B94: 18.2.3.32. | F94: 5.6 | P94: 5.6
A95: Неэффективное использование субсидии автономными и бюджетными учреждениями | B95: 18.2.3.33. | F95: 0
A96: Иные нарушения в части неэффективного использования бюджетных средств. Нарушения по энергосбережению и повышению энергетической | B96: 18.2.3.34. | F96: 0
A97: Иные нарушения в части неэффективного использования бюджетных средств. Погашение кредиторской задолженности, образованной в прошлом периоде при наличии ЛБО | B97: 18.2.3.35. | F97: 0
A98: Другие неэффективные расходы. Неэффективные расходы средств, выделенных на реализацию адресной программы Республики Башкортостан на период 2011 - 2015 годов по замене и модернизации лифтов, отработавших нормативный срок службы. | B98: 18.18.2.3.36. | F98: 0
A99: Другие неэффективные расходы. Неэффективные нарушения в использовании средств, выделенных на софинансирование расходов по модернизации систем наружного освещения населенных пунктов Республики Башкортостан на 2011–2015 годы. | B99: 18.18.2.3.37. | F99: 0
A100: Другие неэффективные расходы. Неэффективные нарушения использовании средств, выделенных на реализацию республиканской адресной программы по проведению капитального ремонта многоквартирных домов | B100: 18.18.2.3.38. | F100: 0
A101: Иные нарушения в части неэффективного использования бюджетных средств. Непринятие мер по обеспечению снижения количества потребляемых коммунальных услуг | B101: 18.18.2.3.39. | F101: 0
A102: Иные нарушения в части неэффективного использования бюджетных средств. В образовательных учреждениях при отсутствии лицензии на осуществление медицинской деятельности произведены расходы по выплате заработной плате медицинским сестрам какие функция она выполняет, (введено в штат. Расписание должность медсестры, а должны по согл-ю с МО, МЗ РБ работать медперсонал с больницы) | B102: 18.18.2.3.40. | F102: 0
A103: Иные нарушения в части неэффективного использования средств. (Хозяйствующий субъект) | B103: 18.18.2.3.41. | F103: 0
A104: Заключение государственных (муниципальных) контрактов с единственным поставщиком (в установленных случаях) без соблюдения установленных процедур и с нарушением закона. | B104: 18.2.3.4. | F104: 0
A105: Неэффективное использование бюджетных средств вследствие нарушений в оформлении государственных (муниципальных) контрактов, договоров, актов выполненных работ, других документов. | B105: 18.2.3.5. | F105: 0
A106: Неисполнение поставщиками (подрядчиками) условий государственных (муниципальных) контрактов, договоров по соблюдению договорных цен. | B106: 18.2.3.6. | F106: 0
A107: Заключение государственных (муниципальных) контрактов без установления обязательных условий, несоответствия конкурсной документации. | B107: 18.2.3.7. | F107: 0
A108: Неэффективное использование бюджетных средств вследствие неприменения штрафных санкций к поставщикам и подрядчикам, нарушившим обязательства по условиям государственного (муниципального) контракта, договора. | B108: 18.2.3.8. | F108: 0
A109: Неэффективное использование бюджетных средств вследствие заключения сделок, признанных судом недействительными. | B109: 18.2.3.9. | F109: 0
A110: Безвозмездная передача государственного (муниципального) имущества (собственности) при отсутствии достаточных на то оснований. Передача имущества другим юридическим и физическим лицам без разрешения собственника. | B110: 18.3.1.13. | F110: 0
A111: Непередача, неполная, несвоевременная передача государственного (муниципального) имущества. Передача имущества без соответствующего документального оформления. | B111: 18.3.1.15. | F111: 0
A112: Отсутствие контроля за использованием объектов государственной (муниципальной) собственности. | B112: 18.3.1.16. | F112: 0
A113: Затраты государственного (муниципального) имущества сверх необходимого (возможного) на получение требуемого результата. | B113: 18.3.1.17. | F113: 0
A114: Затраты государственного имущества без достижения требуемого результата. | B114: 18.3.1.18. | F114: 0
A115: Неосвоение, неиспользование (неполное использование) имущества. | B115: 18.3.1.19. | F115: 12.4 | P115: 12.4
A116: Неэффективное управление объектами государственной и муниципальной собственности, убыточная, неприбыльная деятельность государственных и муниципальных унитарных предприятий, акционерных обществ и других организаций с участием государства; получение меньших, чем возможно, прибыли, дивидендов по акциям. | B116: 18.3.1.20. | F116: 0
A117: Неэффективное использование бюджетных средств в результате ущерба, причиненного дорожно-транспортным происшествием, не возмещенного виновным лицом. | B117: 18.3.1.21. | F117: 0
A118: Другие нарушения при распоряжении государственным (муниципальным) имуществом | B118: 18.3.1.22. | F118: 0
A119: Неправомерное предоставление в пользование или залог объектов государственной (муниципальной) собственности | B119: 18.3.1.9. | F119: 0
A120: Направление средств, полученных от предпринимательской и иной приносящей доход деятельности, на цели, не предусмотренные нормативными правовыми актами и разрешительными документами. | B120: 18.5.2.1. | F120: 0
A121: Невыполнение договорных обязательств; непринятие мер по погашению кредиторской задолженности. | B121: 18.5.2.8. | F121: 0
A122: Другие нарушения при осуществлении бюджетными учреждениями предпринимательской и иной приносящей доход деятельности. | B122: 18.5.2.9. | F122: 0
A123: Нарушения при распоряжении имущества автономных и бюджетных учреждений (особо ценного имущества, движимого имущества и недвиженого имущества, находящегося в собственности субъекта Российской Федерации, находящегося в муниципальной собственности) | B123: 18.3.1.23. | F123: 0
A124: Недостача денежных средств | B124: 19 | F124: 0 | K124: =SUM(K125) -> 0 | P124: =SUM(P125) -> 0 | U124: =SUM(U125) -> 0 | Z124: =SUM(Z125) -> 0
A125: Недостача наличных денежных средств, бланков строгой отчетности в кассе организации. | B125: 19.2.2.55. | F125: 0
A126: Недостача материальных ресурсов | B126: 20 | F126: 0 | K126: =SUM(K127:O129) -> 0 | P126: =SUM(P127:T129) -> 0 | U126: =SUM(U127:Y129) -> 0 | Z126: =SUM(Z127:AD129) -> 0
A127: Недостача государственного (муниципального) имущества. | B127: 20.3.1.3. | F127: 0
A128: Недостача товарно-материальных ценностей. | B128: 20.2.2.54. | F128: 0
A129: Нарушение порядка приватизации государственного (муниципального) имущества | B129: 20.3.1.12. | F129: 0
A130: Недопоступление платежей в бюджет | B130: 21 | F130: 0 | K130: =SUM(K131:O151)+K152+K155 -> 0 | P130: =SUM(P131:T151)+P152+P155 -> 0 | U130: =SUM(U131:Y151)+U152+U155 -> 0 | Z130: =SUM(Z131:AD151)+Z152+Z155 -> 0
A131: Непоступление либо недопоступление средств в бюджет от реализация государственной (муниципальной) собственности (в т.ч. реализация государственной (муниципальной) собственности по заниженной стоимости, снижение стоимости реализуемого имущества вследствие естественной убыли или его порчи). | B131: 21.1.1.10. | F131: 0
A132: Нарушение порядка распоряжения объектом нежилого фонда, находящимся в государственной собственности Республики Башкортостан или муниципальной собственности, и использования указанного объекта. Предоставление государственного (муниципального) имущества без согласия собственника в пользование, без получения доходов от его использования в соответствующий бюджет. | B132: 21.1.1.11. | F132: 0
A133: Непринятие мер по взысканию арендной платы за пользование государственным (муниципальным) имуществом. Занижение и недополучение размеров арендной платы за использование государственного (муниципального) имущества. | B133: 21.1.1.12. | F133: 0
A134: Нарушение порядка зачисления средств в доход бюджета. | B134: 21.1.1.14. | F134: 0
A135: Другие нарушения, влекущие недопоступление средств в доход бюджета. | B135: 21.1.1.15. | F135: 0
A136: Непринятие мер по взысканию недоимки по налогам, сборам и обязательным платежам в доход бюджета, в том числе отсутствие контроля за правильностью исчисления, полнотой и своевременностью уплаты, начисления и учета, взыскания и принятия решений о возврате (зачете) излишне уплаченных (взысканных) платежей, пеней и штрафов по ним. | B136: 21.1.1.3. | F136: 0
A137: Непринятие мер по своевременному и полному получению в бюджетную систему средств, предоставленных на возвратной основе, а также платы за пользование этими средствами (включая бюджетные кредиты). | B137: 21.1.1.4. | F137: 0
A138: Неперечисление (несвоевременное или неполное перечисление) в бюджет средств, полученных от распоряжения государственной (муниципальной) собственностью, использования государственной (муниципальной) собственности, предоставления государственных (муниципальных) услуг. | B138: 21.1.1.5. | F138: 0
A139: Неперечисление (несвоевременное или неполное перечисление) в доход бюджета взыскиваемых сумм принудительного изъятия (штрафов, конфискаций и др.), а также доходов, полученных в виде возмещения ущерба. | B139: 21.1.1.6. | F139: 0
A140: Неперечисление (несвоевременное или неполное перечисление) в доход бюджета дебиторской задолженности прошлых лет, поступившей на счета получателей бюджетных средств в текущем году. | B140: 21.1.1.7. | F140: 0
A141: Неперечисление (несвоевременное или неполное перечисление) в бюджет установленной доли чистой прибыли государственными унитарными предприятиями (муниципальными унитарными предприятиями). | B141: 21.1.1.8. | F141: 0
A142: Неперечисление (несвоевременное или неполное перечисление) в бюджет дивидендов по акциям (долям), принадлежащим Республике Башкортостан или муниципальному образованию (при наличии решения о выплате дивидендов). | B142: 21.1.1.9. | F142: 0
A143: Не предъявления требований к возмещению сумм, уплаченных по муниципальной гарантии. | B143: 21.1.2.28. | F143: 0
A144: Реализация государственной (муниципальной) собственности с получением меньших, чем было возможно, средств (в т.ч. реализация государственной собственности по заниженной стоимости, снижение стоимости реализуемого имущества вследствие естественной убыли или его порчи) | B144: 21.3.1.14. | F144: 0
A145: Предоставление государственного (муниципального) имущества в аренду и субаренду без согласия собственника, без заключения договоров или без их регистрации в установленном порядке. | B145: 21.3.1.6. | F145: 0
A146: Несоблюдение условий договора аренды, занижение размеров арендной платы за использование государственного и муниципального имущества, в том числе предоставление во временное пользование имущества излишней площади, чем предусмотрено договором; несоблюдение сроков оплаты по договорам. | B146: 21.3.1.7. | F146: 0
A147: Непринятие мер по взысканию арендной платы за пользование государственным (муниципальным) имуществом | B147: 21.3.1.8. | F147: 0
A148: Неправомерное предоставление в пользование или залог объектов государственной (муниципальной) собственности | B148: 21.3.1.9. | F148: 0
A149: Осуществление деятельности, не предусмотренной учредительными документами. | B149: 21.5.2.5. | F149: 0
A150: Осуществление деятельности при отсутствии необходимых разрешений (лицензий, аттестации, аккредитации) или с их нарушением. | B150: 21.5.2.6. | F150: 0
A151: Другие нарушения при осуществлении бюджетными учреждениями предпринимательской и иной приносящей доход деятельности. | B151: 21.5.2.9. | F151: 0
A152: Налоговые платежи | B152: 22 | F152: 0 | K152: =SUM(K153:O154) -> 0 | P152: =SUM(P153:T154) -> 0 | U152: =SUM(U153:Y154) -> 0 | Z152: =SUM(Z153:AD154) -> 0
A153: Другие нарушения, влекущие недопоступление средств в доход бюджета | B153: 22.1.1.15. | F153: =SUM(K153:AD153) -> 0
A154: Предоставление государственного (муниципального) имущества в аренду и субаренду без согласия собственника, без заключения договоров или без их регистрации в установленном порядке. | B154: 22.3.1.6. | F154: 0
A155: Неналоговые платежи | B155: 23 | F155: 0 | K155: =SUM(K156:O171) -> 0 | P155: =SUM(P156:T171) -> 0 | U155: =SUM(U156:Y171) -> 0 | Z155: =SUM(Z156:AD171) -> 0
A156: Непринятие мер по взысканию пени за несвоевременное перечисление в доход бюджета доли чистой прибыли муниципальных унитарных предприятий | B156: 23.1.1.3. | F156: 0
A157: Не погашены пени за несвовременную уплату процентов по использованию бюджетных средств | B157: 23.1.1.4. | F157: 0
A158: Неперечисление (несвоевременное или неполное перечисление) в бюджет средств, полученных от распоряжения государственной (муниципальной) собственностью, использования государственной (муниципальной) собственности, предоставления государственных (муниц | B158: 23.1.1.5. | F158: 0
A159: Неперечисление (несвоевременное или неполное перечисление) в бюджет установленной доли чистой прибыли государственными унитарными предприятиями (муниципальными унитарными предприятиями) | B159: 23.1.1.8. | F159: 0
A160: Непоступление либо недопоступление средств в бюджет от реализация государственной (муниципальной) собственности (в т.ч. реализация государственной (муниципальной) собственности по заниженной стоимости, снижение стоимости реализуемого имущества вследс | B160: 23.1.1.10. | F160: 0
A161: Нарушение порядка распоряжения объектом нежилого фонда, находящимся в государственной собственности Республики Башкортостан или муниципальной собственности, и использования указанного объекта. Предоставление государственного (муниципального) имуществ | B161: 23.1.1.11. | F161: 0
A162: Нарушение порядка приватизации государственного (муниципального) имущества | B162: 23.1.1.12. | F162: 0
A163: Неправомерное предоставление льгот, отсрочек, рассрочек по платежам за пользование государственным (муниципальным) имуществом | B163: 23.1.1.13. | F163: 0
A164: Средства, подлежащие перечислению в доход бюджета в виде платы от найма жилых помещений не учитывались в доходах местного бюджета | B164: 23.1.1.14. | F164: 0
A165: Невзысканны пени в бюджет по арендной плате за землю | B165: 23.1.1.15. | F165: 0
A166: Предоставление государственного (муниципального) имущества в аренду и субаренду без согласия собственника, без заключения договоров или без их регистрации в установленном порядке. | B166: 23.3.1.6. | F166: 0
A167: Несоблюдение условий договора аренды, занижение размеров арендной платы за использование государственного и муниципального имущества, в том числе предоставление во временное пользование имущества излишней площади, чем предусмотрено договором; несоблю | B167: 23.3.1.7. | F167: 0
A168: Непринятие мер по взысканию арендной платы за пользование государственным (муниципальным) имуществом | B168: 23.3.1.8. | F168: 0
A169: Неправомерное предоставление в пользование или залог объектов государственной (муниципальной) собственности | B169: 23.3.1.9. | F169: 0
A170: Нарушение порядка приватизации государственного (муниципального) имущества | B170: 23.3.1.12. | F170: 0
A171: Реализация государственной (муниципальной) собственности с получением меньших, чем было возможно, средств (в т.ч. реализация государственной собственности по заниженной стоимости, снижение стоимости реализуемого имущества вследствие естественной убыл | B171: 23.3.1.14. | F171: 0
A172: Излишки материальных ценностей и денежных средств | B172: 24 | F172: 3107.1 | K172: =SUM(K173:O174) -> 0 | P172: =SUM(P173:T174) -> 3107.1 | U172: =SUM(U173:Y174) -> 0 | Z172: =SUM(Z173:AD174) -> 0
A173: Излишки товарно-материальных ценностей, денежных средств и бланков строгой отчетности. | B173: 24.2.2.56. | F173: 386.1 | P173: 386.1
A174: Наличие неучтенного, неоприходованного в установленном порядке государственного (муниципального) имущества. | B174: 24.3.1.4. | F174: 2721 | P174: 2721
A175: Неправомерное расходование денежных средств и материальных ресурсов | B175: 25 | F175: 2.2 | K175: =SUM(K176:O265) -> 0 | P175: =SUM(P176:T265) -> 2.2 | U175: =SUM(U176:Y265) -> 0 | Z175: =SUM(Z176:AD265) -> 0
A176: Излишнее списание продуктов питания вследствие неверного применения норм естественной убыли | B176: 25.2.2.16. | F176: 0
A177: Излишнее либо неправомерное начисление отпускных (основные и дополнительные отпуска) и компенсации за неиспользованный отпуск, в том числе неправомерная выплата отпускных сотрудникам, отозванным из отпуска (начисление заработной платы и отпускных за один и тот же период), начисление отпускных в результате неверного расчета дней или неверного применения коэффициента с учетом начислений на выплаты по оплате труда. | B177: 25.2.2.6. | F177: 0.2 | P177: 0.2
A178: Неправомерное использование доходов, полученных сверх утвержденных законом о бюджете. | B178: 25.1.2.10. | F178: 0
A179: Неправомерное финансирование федеральных органов государственной власти и организаций за счет средств бюджетов субъектов РФ и (или) местных бюджетов (при отсутствии правовых оснований). | B179: 25.1.2.11. | F179: 0
A180: Неправомерное финансирование расходных обязательств Республики Башкортостан за счет средств местных бюджетов (при отсутствии правовых оснований). | B180: 25.1.2.12. | F180: 0
A181: Неправомерное финансирование местных органов власти и организаций за счет средств бюджета Республики Башкортостан (при отсутствии правовых оснований). | B181: 25.1.2.13. | F181: 0
A182: Предоставление бюджетных инвестиций без оформления доли Республики Башкортостан (муниципального образования) в уставных (складочных) капиталах юридических лиц. | B182: 25.1.2.29. | F182: 0
A183: Предоставление субсидий юридическим лицам (за исключением субсидий государственным, муниципальным учреждениям), индивидуальным предпринимателям, физическим лицам - производителям товаров, работ, услуг и некоммерческим организациям в нарушение порядка, установленного соответствующими нормативно-правовыми актами. | B183: 25.1.2.31. | F183: 0
A184: Неправомерное финансирование расходов путем проведения зачета денежных средств. | B184: 25.1.2.32. | F184: 0
A185: Нарушение порядка размещения бюджетных средств на банковских депозитах или передачи их в доверительное управление.Неэффективное размещение государственных средств в кредитных организациях. | B185: 25.1.2.33. | F185: 0
A186: Выделение и направление средств бюджетной системы организациям, учредительными документами которых не предусмотрено осуществление соответствующей деятельности. | B186: 25.1.2.34. | F186: 0
A187: Другие нарушения, влекущие правонарушения в сфере исполнения бюджета по расходам. | B187: 25.1.2.36. | F187: 0
A188: Выделение главными распорядителями, распорядителями бюджетных средств и направление бюджетным учреждениям средств бюджета Республики Башкортостан и муниципальных бюджетов в нарушение казначейской системы исполнения бюджета или на иные счета получателей бюджетных средств. | B188: 25.1.2.4. | F188: 0
A189: Содержание за счет выделенных бюджетных средств сверхлимитной численности персонала с учетом начислений на выплаты по оплате труда. | B189: 25.2.2.1. | F189: 0
A190: Завышение объемных показателей деятельности учреждения, приводящее к неправильному определению размера оплаты труда руководителей. | B190: 25.2.2.10. | F190: 0
A191: Иные нарушения в части оплаты труда, пособий и единого социального налога | B191: 25.2.2.11. | F191: 0
A192: Обучение за счет выделенных бюджетных средств учащихся или студентов, численностью сверх или менее установленного лимита. | B192: 25.2.2.12. | F192: 0
A193: Начисления и выплаты стипендий, компенсаций и др. учащимся, студентам (в том числе обучаемым на договорной основе с полным возмещением затрат), учащимся (студентам) - сиротам и оставшимся без попечения родителей с нарушением действующего законодательства. | B193: 25.2.2.13. | F193: =SUM(K193:AD193) -> 0
A194: Иные нарушения в части расчетов с учащимися и студентами. | B194: 25.2.2.14. | F194: 0
A195: Излишнее списание продуктов питания вследствие применения завышенных (необоснованных) норм | B195: 25.2.2.15. | F195: 0
A196: Излишнее списание продуктов питания вследствие завышения количества питающихся | B196: 25.2.2.17. | F196: =SUM(K196:AD196) -> 0
A197: Списание продуктов на питание сотрудников, сторонних лиц (при условии, если последними не произведена оплата стоимости питания с последующим восстановление в соответствующий бюджет). | B197: 25.2.2.18. | F197: 0
A198: Иные нарушения в части списания продуктов питания. | B198: 25.2.2.19. | F198: 0
A199: Содержание за счет выделенных бюджетных средств должностей, не предусмотренных штатным расписанием или действующим законодательством с учетом начислений на выплаты по оплате труда. | B199: 25.2.2.2. | F199: 0
A200: Расходы, связанные со служебной командировкой, произведенные с превышением норм и нормативов, установленных законодательством. | B200: 25.2.2.20. | F200: 0
... 144 more rows

Sheet 4. ФК-1
A1: Сведения о результатах проведенных контрольных мероприятий
A2: =CONCATENATE("по состоянию на ",'1. Начальные данные'!D18," ",'1. Начальные данные'!F18) -> по состоянию на 31 декабря 2017 года
A3: ='1. Начальные данные'!D17 -> МР Нуримановский район РБ
A4: №№ | D4: Показатели | Z4: Код строки | AC4: Сумма всего
A5: 1 | D5: 2 | Z5: 3 | AC5: 4
A6: I. | D6: Проведено ревизий и проверок (единиц), в том числе: | Z6: 1 | AC6: =AC7+AC8 -> 6
D7: ревизий | Z7: 1.1 | AC7: 4
D8: проверок | Z8: 1.2 | AC8: 2
D9: по плану | Z9: 2 | AC9: 4 | AF9: =IF(SUM(AC9:AE14)=AC6,"","строка 1 должна совпадать с суммой строк 2-7") -> 
D10: по поручениям администрации республики | Z10: 3
D11: по обращениям органов местного самоуправлении | Z11: 4 | AC11: 2
D12: по обращениям органов прокуратуры и МВД | Z12: 5
D13: по обращениям физических лиц | Z13: 6
D14: по обращениям прочих юридических лиц | Z14: 7
D15: Проведено встречных проверок (единиц) | Z15: 8
D16: Ревизии и проверки проведены в учреждениях, (единиц):
D17: состоящих на бюджете Республики Башкортостан | Z17: 9
D18: состоящих на муниципальном бюджете | Z18: 10 | AC18: 5
D19: являющихся государственным унитарным предприятием | Z19: 11
D20: являющихся муниципальным унитарным предприятием | Z20: 12 | AC20: 1
D21: прочие организации | Z21: 13
D22: Количество проведенных инвентаризаций ТМЦ, кассы (денежных средств и ценных бумаг и т.п.) | Z22: 14 | AC22: 10
A23: II. | D23: Сведения о выявленных ревизиями (проверками) финансовых нарушениях
D24: Количество ревизий и проверок, которыми выявлены финансовые нарушения – всего: (единиц) | Z24: 15 | AC24: 5
D25: в использовании средств бюджета Республики Башкортостан | Z25: 15/1
D26: в использовании средств бюджета муниципального образования | Z26: 15/2 | AC26: 5
D27: в использовании средств, полученных от оказания платных услуг и осуществления иной приносящей доход деятельности | Z27: 15/3
D28: в использовании прочих средств | Z28: 15/4
A29: 1. | D29: Сумма финансовых нарушений, в том числе: | Z29: 16 | AC29: ='3. Объяснительная'!$F$8 -> 3313.3 | AG29: =IF(AC29>1000000,"обратите внимание: суммы нарушений в третьей вкладке 'Объяснительная' указываются в тыс.рублей","") -> 
D30: в использовании средств бюджета Республики Башкортостан | Z30: 16/1 | AC30: ='3. Объяснительная'!K8 -> 0
D31: в использовании средств бюджета муниципального образования | Z31: 16/2 | AC31: ='3. Объяснительная'!P8 -> 3313.3
D32: в использовании средств, полученных от оказания платных услуг и осуществления иной приносящей доход деятельности | Z32: 16/3 | AC32: ='3. Объяснительная'!U8 -> 0
D33: в использовании прочих средств | Z33: 16/4 | AC33: ='3. Объяснительная'!Z8 -> 0
A34: 1.1. | D34: Нецелевое использование средств, в том числе: | Z34: 17 | AC34: ='3. Объяснительная'!F9 -> 27
D35: средств бюджета Республики Башкортостан | Z35: 17/1 | AC35: ='3. Объяснительная'!K9 -> 0
D36: средств бюджета муниципального образования | Z36: 17/2 | AC36: ='3. Объяснительная'!P9 -> 27
D37: в использовании средств, полученных от оказания платных услуг и осуществления иной приносящей доход деятельности | Z37: 17/3 | AC37: ='3. Объяснительная'!U9 -> 0
D38: в использовании прочих средств | Z38: 17/4 | AC38: ='3. Объяснительная'!Z9 -> 0
A39: 1.2. | D39: Неэффективное использование материальных ресурсов и денежных средств, в том числе: | Z39: 18 | AC39: ='3. Объяснительная'!F41 -> 103
D40: средств бюджета Республики Башкортостан | Z40: 18/1 | AC40: ='3. Объяснительная'!K41 -> 0
D41: средств бюджета муниципального образования | Z41: 18/2 | AC41: ='3. Объяснительная'!P41 -> 103
D42: в использовании средств, полученных от оказания платных услуг и осуществления иной приносящей доход деятельности | Z42: 18/3 | AC42: ='3. Объяснительная'!U41 -> 0
D43: в использовании прочих средств | Z43: 18/4 | AC43: ='3. Объяснительная'!Z41 -> 0
A44: 1.3. | D44: Недостача денежных средств, в том числе: | Z44: 19 | AC44: ='3. Объяснительная'!F124 -> 0
D45: средств бюджета Республики Башкортостан | Z45: 19/1 | AC45: ='3. Объяснительная'!K124 -> 0
D46: средств бюджета муниципального образования | Z46: 19/2 | AC46: ='3. Объяснительная'!P124 -> 0
D47: средств, полученных от оказания платных услуг и осуществления иной приносящей доход деятельности | Z47: 19/3 | AC47: ='3. Объяснительная'!U124 -> 0
D48: прочих средств | Z48: 19/4 | AC48: ='3. Объяснительная'!Z124 -> 0
A49: 1.4. | D49: Недостача материальных ресурсов: в том числе | Z49: 20 | AC49: ='3. Объяснительная'!F126 -> 0
D50: приобретенных за счет средств бюджета Республики Башкортостан | Z50: 20/1 | AC50: ='3. Объяснительная'!K126 -> 0
D51: приобретенных за счет средств бюджета муниципального образования | Z51: 20/2 | AC51: ='3. Объяснительная'!P126 -> 0
D52: приобретенных за счет средств, полученных от оказания платных услуг и осуществления иной приносящей доход деятельности | Z52: 20/3 | AC52: ='3. Объяснительная'!U126 -> 0
D53: приобретенных за счет прочих средств | Z53: 20/4 | AC53: ='3. Объяснительная'!Z126 -> 0
A54: 1.5. | D54: Недопоступление платежей в бюджет, в том числе: | Z54: 21 | AC54: ='3. Объяснительная'!F130 -> 0
A55: 1.5.1. | D55: Налоговые платежи, из них: | Z55: 22 | AC55: ='3. Объяснительная'!F152 -> 0
D56: в бюджет Республики Башкортостан | Z56: 22/1 | AC56: ='3. Объяснительная'!K152 -> 0
D57: в бюджет муниципального образования | Z57: 22/2 | AC57: ='3. Объяснительная'!P152 -> 0
A58: 1.5.2. | D58: Неналоговые платежи, из них: | Z58: 23 | AC58: ='3. Объяснительная'!F155 -> 0
D59: в бюджет Республики Башкортостан | Z59: 23/1 | AC59: ='3. Объяснительная'!K155 -> 0
D60: в бюджет муниципального образования | Z60: 23/2 | AC60: ='3. Объяснительная'!P155 -> 0
A61: 1.6. | D61: Излишки материальных ценностей и денежных средств, в том числе: | Z61: 24 | AC61: ='3. Объяснительная'!F172 -> 3107.1
D62: средств бюджета Республики Башкортостан | Z62: 24/1 | AC62: ='3. Объяснительная'!K172 -> 0
D63: средств бюджета муниципального образования | Z63: 24/2 | AC63: ='3. Объяснительная'!P172 -> 3107.1
D64: средств, полученных от оказания платных услуг и осуществления иной приносящей доход деятельности | Z64: 24/3 | AC64: ='3. Объяснительная'!U172 -> 0
D65: прочих средств | Z65: 24/4 | AC65: ='3. Объяснительная'!Z172 -> 0
A66: 1.7. | D66: Неправомерное расходование денежных средств и материальных ресурсов, в том числе: | Z66: 25 | AC66: ='3. Объяснительная'!F175 -> 2.2
D67: средств бюджета Республики Башкортостан | Z67: 25/1 | AC67: ='3. Объяснительная'!K175 -> 0
D68: средств бюджета муниципального образования | Z68: 25/2 | AC68: ='3. Объяснительная'!P175 -> 2.2
D69: средств, полученных от оказания платных услуг и осуществления иной приносящей доход деятельности | Z69: 25/3 | AC69: ='3. Объяснительная'!U175 -> 0
D70: прочих средств | Z70: 25/4 | AC70: ='3. Объяснительная'!Z175 -> 0
A71: 1.8. | D71: Другие финансовые нарушения, в том числе: | Z71: 26 | AC71: ='3. Объяснительная'!F266 -> 74
D72: средств бюджета Республики Башкортостан | Z72: 26/1 | AC72: ='3. Объяснительная'!K266 -> 0
D73: средств бюджета муниципального образования | Z73: 26/2 | AC73: ='3. Объяснительная'!P266 -> 74
D74: средств, полученных от оказания платных услуг и осуществления иной приносящей доход деятельности | Z74: 26/3 | AC74: ='3. Объяснительная'!U266 -> 0
D75: прочих средств | Z75: 26/4 | AC75: ='3. Объяснительная'!Z266 -> 0
A76: III. | D76: Сведения о мерах, принятых по реализации материалов ревизий (проверок)
A77: 1. | D77: Направлено представлений, предписаний (писем, служебных записок): | Z77: 27 | AC77: =SUM(AC78:AE83) -> 7
D78: в МФ РБ (единиц) | Z78: 27/1
D79: в ФУ администраций муниципальных районов и городских округов (единиц) | Z79: 27/2
D80: в администрацию города, района (единиц) | Z80: 27/3 | AC80: 1
D81: руководителю организации и учреждения (единиц) | Z81: 27/4 | AC81: 6
D82: в вышестоящую организацию (единиц) | Z82: 27/5
D83: прочим учреждениям и организациям (единиц) | Z83: 27/6
D84: На сумму выявленных финансовых нарушений в использовании средств | Z84: 28 | AC84: =SUM(AC85:AE88) -> 3236.9
D85: бюджета Республики Башкортостан | Z85: 28/1
D86: бюджета муниципального образования | Z86: 28/2 | AC86: 3236.9
D87: полученных от оказания платных услуг и осуществления иной приносящей доход деятельности | Z87: 28/3
D88: прочих | Z88: 28/4
A89: 2. | D89: Приняты меры по представлениям (предписаниям) | Z89: 29 | AC89: =SUM(AC90:AE95) -> 4
D90: МФ РБ (единиц) | Z90: 29/1
D91: ФУ администраций муниципальных районов и городских округов (единиц) | Z91: 29/2
D92: администрацией города, района (единиц) | Z92: 29/3
D93: руководителем организации и учреждения (единиц) | Z93: 29/4 | AC93: 4
D94: вышестоящей организацией (единиц) | Z94: 29/5
D95: прочими учреждениями и организациями (единиц) | Z95: 29/6
A96: 2.1. | D96: На сумму выявленных финансовых нарушений в использовании средств | Z96: 30 | AC96: =SUM(AC97:AE100) -> 3181.1
D97: бюджета Республики Башкортостан | Z97: 30/1
D98: бюджета муниципального образования | Z98: 30/2 | AC98: 3181.1
D99: полученных от оказания платных услуг и осуществления иной приносящей доход деятельности | Z99: 30/3
D100: прочих | Z100: 30/4
A101: 3. | D101: Передано органам прокуратуры и правоохранительным органам материалов ревизий (проверок) – всего: (единиц) | Z101: 31
A102: 3.1. | D102: На сумму выявленных финансовых нарушений, в том числе: | Z102: 34 | AC102: =SUM(AC103:AE106) -> 0
D103: в использовании средств бюджета Республики Башкортостан | Z103: 34/1
D104: в использовании средств муниципального образования | Z104: 34/2
D105: в использовании средств, полученных от оказания платных услуг и осуществления иной приносящей доход деятельности | Z105: 34/3
D106: в использовании прочих средств | Z106: 34/4
A107: 4. | D107: Количество возбужденных уголовных дел – всего (единиц), в том числе: | Z107: 35 | AC107: =SUM(AC108:AE109) -> 0
D108: по материалам ревизий и проверок, проведенных по обращению органов прокуратуры и правоохранительных органов | Z108: 35/1
D109: по материалам ревизий и проверок, переданных по инициативе органов, осуществляющих финансовый контроль | Z109: 35/2
A110: 4.1 | D110: На сумму выявленных финансовых нарушений, в том числе: | Z110: 36 | AC110: =SUM(AC111:AE114) -> 0
D111: в использовании средств бюджета Республики Башкортостан | Z111: 36/1
D112: в использовании средств муниципального образования | Z112: 36/2
D113: в использовании средств, полученных от оказания платных услуг и осуществления иной приносящей доход деятельности | Z113: 36/3
D114: в использовании прочих средств | Z114: 36/4
A115: 5. | D115: Количество отказов в возбуждении уголовных дел органами прокуратуры и правоохранительными органами – всего (единиц), в том числе: | Z115: 37 | AC115: =SUM(AC116:AE117) -> 0
D116: по материалам ревизий и проверок, проведенных по обращению органов прокуратуры и правоохранительных органов | Z116: 37/1
D117: по материалам ревизий и проверок, переданных по инициативе органов, осуществляющих финансовый контроль | Z117: 37/2
A118: 5.1 | D118: На сумму финансовых нарушений, в том числе: | Z118: 38 | AC118: =SUM(AC119:AE122) -> 0
D119: в использовании средств бюджета Республики Башкортостан | Z119: 38/1
D120: в использовании средств муниципального образования | Z120: 38/2
D121: в использовании средств, полученных от оказания платных услуг и осуществления иной приносящей доход деятельности | Z121: 38/3
D122: в использовании прочих средств | Z122: 38/4
A123: IV. | D123: Сведения по протоколам об административных правонарушениях
A124: 1. | D124: Количество протоколов об административных правонарушениях, составленных должностными лицами органов, осуществляющих финансовый контроль (единиц), в том числе: | Z124: 39 | AC124: =SUM(AC125:AE129) -> 0
D125: за нецелевое использование средств бюджета Республики Башкортостан (единиц) | Z125: 39/1
D126: за нецелевое использование средств бюджета муниципального образования (единиц) | Z126: 39/2
D127: за нарушение сроков возврата средств бюджета РБ и сроков перечисления платы за пользование средствами бюджета РБ (единиц) | Z127: 39/3
D128: за нарушение сроков возврата средств бюджета муниципального образования и сроков перечисления платы за пользование средствами бюджета муниципального образования (единиц) | Z128: 39/4
D129: за прочие финансовые нарушения (единиц) | Z129: 39/5
A130: 1.1 | D130: На сумму нецелевого использования бюджетных средств, в том числе: | Z130: 40 | AC130: =SUM(AC131:AE132) -> 0
D131: средств бюджета Республики Башкортостан | Z131: 40/1
D132: средств бюджета муниципального образования | Z132: 40/2
A133: 1.2 | D133: На сумму бюджетных средств, невозвращенных в срок и сумму платы за пользование бюджетными средствами, не перечисленной в срок, в том числе: | Z133: 41 | AC133: =SUM(AC134:AE135) -> 0
D134: средств бюджета Республики Башкортостан | Z134: 41/1
D135: средств бюджета муниципального образования | Z135: 41/2
A136: 2. | D136: Количество протоколов об административных правонарушениях, по результатам рассмотрения которых наложен административный штраф (единиц), в том числе: | Z136: 42 | AC136: =SUM(AC137:AE141) -> 0
D137: за нецелевое использование средств бюджета РБ (единиц) | Z137: 42/1
D138: за нецелевое использование средств бюджета муниципального образования (единиц) | Z138: 42/2
D139: за нарушение сроков возврата средств бюджета РБ и сроков перечисления платы за пользование средствами бюджета РБ (единиц) | Z139: 42/3
D140: за нарушение сроков возврата средств бюджета муниципального образования и сроков перечисления платы за пользование средствами бюджета муниципального образования (единиц) | Z140: 42/4
D141: за прочие нарушения (единиц) | Z141: 42/5
A142: 3. | D142: Количество протоколов об административных правонарушениях, по которым дела об административных правонарушениях прекращены (единиц), в том числе: | Z142: 43 | AC142: =SUM(AC143:AE146) -> 0
D143: за нецелевое использование средств бюджета РБ (единиц) | Z143: 43/1
D144: за нецелевое использование средств бюджета муниципального образования (единиц) | Z144: 43/2
D145: за нарушение сроков возврата средств бюджета РБ и сроков перечисления платы за пользование средствами бюджета РБ (единиц) | Z145: 43/3
D146: за нарушение сроков возврата средств бюджета муниципального образования и сроков перечисления платы за пользование средствами бюджета муниципального образования (единиц) | Z146: 43/4
A147: 4. | D147: Количество взысканных штрафных санкций за нарушение бюджетного законодательства (единиц), в том числе: | Z147: 44 | AC147: =SUM(AC148:AE152) -> 0
D148: за нецелевое использование средств бюджета РБ (единиц) | Z148: 44/1
D149: за нецелевое использование средств бюджета муниципального образования (единиц) | Z149: 44/2
D150: за нарушение сроков возврата средств бюджета РБ и сроков перечисления платы за пользование средствами бюджета Республики Башкортостан (единиц) | Z150: 44/3
D151: за нарушение сроков возврата средств бюджета муниципального образования и сроков перечисления платы за пользование средствами бюджета муниципального образования (единиц) | Z151: 44/4
D152: за нарушение условий предоставления субсидий | Z152: 44/5
A153: 5. | D153: Взыскано штрафов за нарушение бюджетного законодательства (в тыс.рублей), в том числе: | Z153: 45 | AC153: =SUM(AC154:AE155) -> 0
D154: в бюджет Республики Башкортостан | Z154: 45/1
D155: в бюджет муниципального образования | Z155: 45/2
A156: 6. | D156: Количество материалов ревизий, направленных в другие органы для наложения административного взыскания – всего (единиц), в том числе: | Z156: 46 | AC156: =SUM(AC157:AE159) -> 0
D157: судебные органы | Z157: 46/1
D158: налоговые органы | Z158: 46/2
D159: прочие органы | Z159: 46/3
A160: 7. | D160: Количество наложенных административных взысканий – всего (единиц), в том числе: | Z160: 47 | AC160: =SUM(AC161:AE163) -> 0
D161: судебными органами | Z161: 47/1
D162: налоговыми органами | Z162: 47/2
D163: прочими органами | Z163: 47/3
A164: 8. | D164: Принято постановлений, решений или приказов органами государственной власти, местного самоуправления и проверяемыми учреждениями (единиц): | Z164: 48 | AC164: 5
A165: 9. | D165: Число лиц, привлеченных к дисциплинарной ответственности – всего (чел.), в том числе: | Z165: 49 | AC165: 1
D166: освобождено от занимаемой должности (человек) | Z166: 49/1
D167: объявлены выговоры, замечания, предупреждения (человек) | Z167: 49/2 | AC167: 1
A168: 10. | D168: Число лиц, привлеченных к материальной ответственности (чел) | Z168: 50
A169: V. | D169: Возмещено средств, использованных с нарушением законодательства, дополнительно поступило платежей и предотвращено потерь по результатам проведенных ревизий и проверок
A170: 1. | D170: Сумма возмещенных финансовых нарушений, в том числе: | Z170: 51 | AC170: =SUM(AC171:AE174) -> 3107.1
D171: средств бюджета Республики Башкортостан | Z171: 51/1 | AC171: =AC176+AC203 -> 0
D172: средств бюджета муниципального образования | Z172: 51/2 | AC172: =AC185+AC204 -> 3107.1
D173: средств, полученных от оказания платных услуг и осуществления иной приносящей доход деятельности | Z173: 51/3 | AC173: =AC192 -> 0
D174: прочих средств | Z174: 51/4 | AC174: =AC197 -> 0
A175: 1.1. | D175: Восстановлено в добровольном порядке, в том числе: | Z175: 52 | AC175: =SUM(AC176,AC185,AC192,AC197) -> 3107.1
A176: 1.1.1 | D176: средств бюджета Республики Башкортостан | Z176: 52/1 | AC176: =AC177+AC180 -> 0
D177: в доход бюджета Республики Башкортостан | Z177: 52/1/1 | AC177: =SUM(AC178:AE179) -> 0
D178: на код ГАД - Минфин РБ | Z178: 52/1/1/1
D179: на код ГАД - ГРБС | Z179: 52/1/1/2
D180: на счета и в кассу учреждения | Z180: 52/1/2 | AC180: =SUM(AC181:AE184) -> 0
D181: на лицевые счета учреждения | Z181: 52/1/2/1
D182: в кассу учреждения | Z182: 52/1/2/2
D183: в регистрах бухгалтерского учета учреждения | Z183: 52/1/2/3
D184: оприходованы излишки и неучтенные ценности, денежные средства | Z184: 52/1/2/4
A185: 1.1.2 | D185: средств бюджета муниципального образования | Z185: 52/2 | AC185: =SUM(AC186:AE187) -> 3107.1
D186: в доход бюджета муниципального образования | Z186: 52/2/1
D187: на счета и в кассу учреждения | Z187: 52/2/2 | AC187: =SUM(AC188:AE191) -> 3107.1
D188: на лицевые счета учреждения | Z188: 52/2/2/1
D189: в кассу учреждения | Z189: 52/2/2/2
D190: в регистрах бухгалтерского учета учреждения | Z190: 52/2/2/3
D191: оприходованы излишки и неучтенные ценности, денежные средства | Z191: 52/2/2/4 | AC191: 3107.1
A192: 1.1.3 | D192: средств, полученных бюджетными учреждениями от оказания платных услуг и осуществления иной приносящей доход деятельности | Z192: 52/3 | AC192: =SUM(AC193:AE196) -> 0
D193: на лицевые счета учреждения | Z193: 52/3/1
D194: в кассу учреждения | Z194: 52/3/2
D195: в регистрах бухгалтерского учета учреждения | Z195: 52/3/3
D196: оприходованы излишки и неучтенные ценности, денежные средства | Z196: 52/3/4
A197: 1.1.4 | D197: прочих средств | Z197: 52/4 | AC197: =SUM(AC198:AE201) -> 0
D198: на банковские счета учреждения | Z198: 52/4/1
D199: в кассу учреждения | Z199: 52/4/2
D200: в регистрах бухгалтерского учета учреждения | Z200: 52/4/3
... 77 more rows

Sheet 5. Объекты КМ
A1: Сведения об объектах контроля
A2: =CONCATENATE('1. Начальные данные'!D18," ",'1. Начальные данные'!F18) -> 31 декабря 2017 года
A3: ='1. Начальные данные'!D17 -> МР Нуримановский район РБ
A5: № | B5: Объект контроля | C5: Тема КМ | D5: Проверяемый период (дд.мм.год-дд.мм.год) | E5: Сроки проведения КМ (дд.мм.год-дд.мм.год)
A6: 1 | B6: МБОУ СОШ с.Старокулево | C6: проверка соблюдения трудового законодательства и иных нормативных правовых актов, содержащих нормы трудового права | D6: 01.01.2016-31.12.2016 | E6: 30.01.2017г-01.03.2017
A7: 2 | B7: Нуримановское МУП ЖКХ | C7: внеплановая документальная проверка ФХД с проведением полной инвентаризации муниципального имущества, находящегося в хозяйственном ведении Нуримановское МУП ЖКХ | D7: 01.08.2014-20.03.2017 | E7: 22.03.2017 - 21.04.2017
A8: 3 | B8: МАОУ СОШ с.Красный Ключ | C8: плановая камеральная ревизия плана ФХД | D8: 01.04.2013-31.03.2017 | E8: 28.03.2017 г -28.04.2017
A9: 4 | B9: СП Старобедеевский сельсовет МР | C9: плановая камеральная ревизия бюджета сельского поселения | D9: 01.06.2014-31.10.2017 | E9: 22.11.2017-11.12.2017
A10: 5 | B10: СП Первомайский сельсовет МР | C10: плановая камеральная ревизия бюджета сельского поселения | D10: 01.08.2014-30.11.2017 | E10: 27.11.2017 -27.12.2017
A11: 6 | B11: СП Староисаеский сельсовет МР | C11: плановая камеральная ревизия бюджета сельского поселения | D11: 01.11.2014-30.11.2017 | E11: 27.11.2017 -27.12.2017
A12: 7
A13: 8
A14: 9
A15: 10
A16: 11
A17: 12
A18: 13
A19: 14
A20: 15
A21: 16
A22: 17
A23: 18
A24: 19
A25: 20
A26: 21
A27: 22
A28: 23
A29: 24
A30: 25
A31: 26
A32: 27
A33: 28
A34: 29
A35: 30
A36: 31
A37: 32
A38: 33
A39: 34
A40: 35
A41: 36
A42: 37
A43: 38
A44: 39
A45: 40
A46: 41
A47: 42
A48: 43
A49: 44
A50: 45
A51: 46
A52: 47
A53: 48
A54: 49
A55: 50
A56: 51
A57: 52
A58: 53
A59: 54
A60: 55
A61: 56
A62: 57
A63: 58
A64: 59
A65: 60
A66: 61
A67: 62
A68: 63
A69: 64
A70: 65
A71: 66
A72: 67
A73: 68
A74: 69
A75: 70
A76: 71
A77: 72
A78: 73
A79: 74
A80: 75
A81: 76
A82: 77
A83: 78
A84: 79
A85: 80
A86: 81
A87: 82
A88: 83
A89: 84
A90: 85
A91: 86
A92: 87
A93: 88
A94: 89
A95: 90
A96: 91
A97: 92
A98: 93
A99: 94
A100: 95
A101: 96
A102: 97
A103: 98
A104: 99
A105: 100
A106: 101
A107: 102
A108: 103
A109: 104
A110: 105
A111: 106
A112: 107
A113: 108
A114: 109
A115: 110
A116: 111
A117: 112
A118: 113
A119: 114
A120: 115
A121: 116
A122: 117
A123: 118
A124: 119
A125: 120
A126: 121
A127: 122
A128: 123
A129: 124
A130: 125
A131: 126
A132: 127
A133: 128
A134: 129
A135: 130
A136: 131
A137: 132
A138: 133
A139: 134
A140: 135
A141: 136
A142: 137
A143: 138
A144: 139
A145: 140
A146: 141
A147: 142
A148: 143
A149: 144
A150: 145
A151: 146
A152: 147
A153: 148
A154: 149
A155: 150
A156: 151
A157: 152
A158: 153
A159: 154
A160: 155
A161: 156
A162: 157
A163: 158
A164: 159
A165: 160
A166: 161
A167: 162
A168: 163
A169: 164
A170: 165
A171: 166
A172: 167
A173: 168
A174: 169
A175: 170
A176: 171
A177: 172
A178: 173
A179: 174
A180: 175
A181: 176
A182: 177
A183: 178
A184: 179
A185: 180
A186: 181
A187: 182
A188: 183
A189: 184
A190: 185
A191: 186
A192: 187
A193: 188
A194: 189
A195: 190
A196: 191
A197: 192
A198: 193
A199: 194
A200: 195
A201: 196
... 204 more rows

Sheet 6. Реал.полном. (hidden)
D1: Приложение
A2: Информация о реализации контрольных полномочий в соответствии с частью 8 статьи 99 Федерального закона «О контрактной системе в сфере закупок товаров, работ, услуг для обеспечения государственных и муниципальных нужд»
A3: =CONCATENATE("по состоянию на ",'1. Начальные данные'!D18," ",'1. Начальные данные'!F18) -> по состоянию на 31 декабря 2017 года
A5: Наименование показателя | B5: Ед.измерения | C5: Количество (сведения)
A6: Наименование муниципального образования | B6: - | C6: ='1. Начальные данные'!D17 -> МР Нуримановский район РБ
A7: 1. Количество проведенных проверок
A8: 1.1. Количество проведенных проверок органами внутреннего муниципального финансового контроля: | B8: шт. | C8: =C9+C10 -> 0
A9: плановые | B9: шт.
A10: внеплановые | B10: шт.
A11: 2. Результаты деятельности органов муниципального финансового контроля
A12: 2.1. Основные виды нарушений, выявленных в ходе проведения плановых и внеплановых проверок* | B12: пункт, часть, статья
A13: 2.2. Общее количество выданных предписаний, в том числе: | B13: шт.
A14: обжаловано предписаний в судах, из них: | B14: шт.
A15: обосновано | B15: шт.
A16: не обосновано | B16: шт.
A17: 2.3. Количество обжалований в досудебном (внесудебном) порядке действий (бездействия) должностных лиц, из них: | B17: шт.
A18: обосновано | B18: шт.
A19: не обосновано | B19: шт.
A21: * Указать пункт, часть, статью Федерального закона от 5 апреля 2013 г. № 44-ФЗ

Sheet 6. Оценка кач-ва
A2: Сведения о контрольной деятельности органа внутреннего муниципального финансового контроля
E3: ='1. Начальные данные'!D17 -> МР Нуримановский район РБ
A4: № п/п | B4: Показатели | C4: Единица измерения | D4: Значение показателя | E4: Примечание
A5: 1. Общие сведения об количестве объектов контроля муниципального образования
A6: 1.1 | B6: Количество главных администраторов бюджетных средств (главные распорядители и администраторы доходов и источников) | C6: ед. | D6: 14
A7: 1.2 | B7: Количество получателей бюджетных средств (казенные и органы местного самоуправления) | C7: ед. | D7: 18
A8: 1.2.2 | B8: в том числе органы местного самоуправления | C8: ед. | D8: 15
A9: 1.3 | B9: Количество бюджетных учреждений | C9: ед. | D9: 13
A10: 1.4 | B10: Количество автономных учреждений | C10: ед. | D10: 3
A11: 1.5 | B11: Количество муниципальных унитарных предприятий | C11: ед. | D11: 2
A12: 1.6 | B12: Количество хозяйственных товариществ и обществ с участием муниципального образования в их уставных капиталах | C12: ед. | D12: 0
A13: 1.7 | B13: Количество юридических лиц, определенных ст.266.1 БК РФ, индивидуальных предпринимателей и физических лиц | C13: ед. | D13: 0
A14: 2. Информация об органе внутреннего муниципального финансового контроля (ст. 269.2 БК РФ)
A15: 2.1 | B15: Полномочия по осуществлению ВМФК возложены на финансовый орган администрации муниципального образования | C15: да/нет | D15: Да
A16: 2.1.1 | B16: Штатная численность финансового органа (всего) | C16: ед. | D16: 13
A17: 2.1.1.1 | B17: Штатная численность должностных лиц (подразделения) финансового органа, осуществляющих ВМФК | C17: ед. | D17: 1 | E17: Сектор исполнения бюджета | F17: =IF(D17>D16,"Проверьте соотношение с вышестоящей ячейкой","") -> 
A18: 2.1.1.2 | B18: Фактическая численность должностных лиц (подразделения) финансового органа, осуществляющих ВМФК | C18: ед. | D18: 1 | F18: =IF(D18>D17,"Проверьте соотношение с вышестоящей ячейкой","") -> 
A19: 2.2 | B19: Полномочия по осуществлению ВМФК возложены на иных должностных лиц (подразделение) администрации муниципального образования | C19: да/нет | D19: Нет
A20: 2.2.1 | B20: Штатная численность администрации муниципального образования | C20: ед. | D20: 45.75 | E20: в том числе 3,75 Респ.Башкортостан
A21: 2.2.1.1 | B21: Штатная численность должностных лиц (подразделения) администрации, осуществляющих ВМФК | C21: ед. | D21: 0 | F21: =IF(D21>D20,"Проверьте соотношение с вышестоящей ячейкой","") -> 
A22: 2.2.1.2 | B22: Фактическая численность должностных лиц (подразделения) администрации, осуществляющих ВМФК | C22: ед. | D22: 0 | F22: =IF(D22>D21,"Проверьте соотношение с вышестоящей ячейкой","") -> 
A23: 2.3 | B23: Количество должностных лиц, осуществляющих ВМФК, обладающих дипломами высшего профобразования в области финансов, бухгалтерского учета, анализа и аудита, по экономическим специальностям | C23: ед. | D23: 1 | F23: =IF((D18+D22)>=(SUM(D24:D26)),"","Количество должностных имеющих дипломы, свидетельства превышает число фактическую численность") -> 
A24: 2.4 | B24: Количество должностных лиц, осуществляющих ВМФК, обладающих дипломами среднего профобразования в области финансов, бухгалтерского учета, анализа и аудита, по экономическим специальностям | C24: ед. | D24: 0
A25: 2.5 | B25: Количество должностных лиц, осуществляющих ВМФК, обладающих свидетельствами (сертификатами) о прохождении повышения квалификации по направлению деятельности в течение последних трех лет | C25: ед. | D25: 0
A26: 2.6 | B26: Количество должностных лиц, осуществляющих ВМФК, имеющих отдельный рабочий стол | C26: ед. | D26: 1
A27: 2.7 | B27: Количество должностных лиц, осуществляющих ВМФК имеющих закрепленную компьютерную технику | C27: ед. | D27: 1
A28: 2.8 | B28: Количество должностных лиц, осуществляющих ВМФК имеющие на рабочем месте доступ к справочно-правовым системам (Консультант, Гарант и др.) | C28: ед. | D28: 1
A29: 2.9 | B29: Количество должностных лиц, осуществляющих ВМФК имеющих на рабочем месте доступ к интернету | C29: ед. | D29: 1
A30: 2.10 | B30: Количество должностных лиц, осуществляющих ВМФК, выполняющие другие функции кроме контрольной | C30: ед. | D30: 1
A31: 2.11 | B31: Количество обоснованных жалоб по контрольной деятельности на должностных лиц, осуществляющих ВМФК | C31: ед. | D31: 0
A32: 2.12 | B32: Наличие плана контрольных мероприятий на отчетный период | C32: да\нет | D32: Да
A33: 2.13 | B33: Количество запланированных контрольных мероприятий на отчетную дату | C33: ед.
A34: 2.13.1 | B34: Количество проведенных (завершенных) контрольных мероприятий за отчетный период | C34: ед. | D34: =IFERROR('4. ФК-1'!AC6,"введите количество в примечании") -> 6
A35: 2.14 | B35: Общее количество объектов контроля в отчетном периоде | C35: ед. | D35: 6
A36: 2.14.1 | B36: Количество проверенных объектов контроля в отчетном периоде | C36: ед. | D36: 6
A37: 2.15 | B37: Количество контрольных мероприятий проведенных в отчетном периоде, по которым выявлены финансовые и нефинансовые нарушения | C37: ед. | D37: 6
A38: 2.16 | B38: Количество контрольных мероприятий, по которым объекту контроля направлены представления, предписания, заключения, уведомления, письма, служебные записки | C38: ед. | D38: 5
A39: 2.17 | B39: Количество контрольных мероприятий, по которым приняты меры по предъявленным представлениям, предписаниям, заключениям, уведомлениям, письмам, служебным запискам | C39: ед. | D39: 5
A40: 2.18 | B40: Объемы денежных средств, которые были проверены в отчетном периоде | C40: тыс. руб | D40: =SUM('2. Пров.суммы'!B10:E10) -> 92791.3
A41: 2.19 | B41: Выявлено финансовых нарушений на сумму | C41: тыс. руб | D41: ='4. ФК-1'!AC29 -> 3313.3
A42: 2.19.1 | B42: Объем денежных средств, подлежащих взысканию | C42: тыс. руб | D42: ='4. ФК-1'!AC221 -> 3136.3
A43: 2.19.2 | B43: Взыскано (восстановлено) средств в доход бюджета | C43: тыс. руб | D43: ='4. ФК-1'!AC177+'4. ФК-1'!AC186 -> 0
A44: 2.20 | B44: Количество предписаний и представлений, направленных объекту контроля | C44: ед. | D44: ='4. ФК-1'!AC77 -> 7
A45: 2.20.1 | B45: Количество признанных судами незаконными предписаний и представлений | C45: ед. | D45: 0
A46: 2.21 | B46: Количество составленных протоколов об административном правонарушении в отчетном периоде | C46: ед. | D46: ='4. ФК-1'!AC124 -> 0
A47: 2.21.1 | B47: Количество вынесенных постановлений о назначении административного штрафа по указанным протоколам | C47: ед. | D47: ='4. ФК-1'!AC136 -> 0
A48: 2.21.2 | B48: Сумма вынесенных постановлений о назначении административного штрафа по указанным протоколам | C48: тыс. руб | D48: 0
A49: 2.21.2.1 | B49: Сумма административных штрафов, взысканная в бюджет | C49: тыс. руб | D49: ='4. ФК-1'!AC153 -> 0
A50: 2.22 | B50: Количество отмененных судами постановлений о привлечении к административной ответственности правонарушителей по причинам отсутствия события (состава) правонарушения, пропуска срока давности привлечения к ответственности, а также вследствие допущенных процессуальных нарушений | C50: ед. | D50: 0
A51: 2.23 | B51: Количество направленных в финансовый орган уведомлений о применении мер принуждения | C51: ед. | D51: 0
A52: 2.23.1 | B52: Количество возвращенных уведомлений о применении мер принуждения по причине неправильной квалификации фактов нарушений и нарушения срока направления уведомлений, установленного БК РФ | C52: ед. | D52: 0
A53: 2.24 | B53: Количество материалов, переданных в правоохранительные органы | C53: ед. | D53: 0
A54: 2.25 | B54: Количество проверок, проведенных совместно с правоохранительными органами | C54: ед. | D54: 0
A55: 2.26 | B55: Количество проверок, проведенных совместно с органами внешнего МФК | C55: ед. | D55: 0
A56: 2.27 | B56: Количество соглашений, подписанных с другими ведомствами (в том числе с правоохранительными органами и поселениями) по вопросам контрольной деятельности | C56: ед. | D56: 12
A57: 2.27.1 | B57: из них, количество соглашений, подписанных с поселениями, входящими в состав муниципального района, по вопросам контрольной деятельности | C57: ед. | D57: 12
A58: 3. Муниципальные правовые акты регулирующие деятельность органа внутреннего муниципального финансового контроля
A59: 3.1 | B59: Документ (постановление), подтверждающий возложение полномочий по осуществлению ВМФК на орган ВМФК (ст.265, 269.2 БК РФ) | C59: да\нет | D59: Да | E59: Постановление Администрации муниципального района Нуримановский район Республики Башкортостан от 25.04.14 года № 1432 "Об утверждении Порядка осуществления органом внутреннего муниципального финансового контроля полномочий по контролю в финансово-бюджетной сфере в муниципальном районе Нуримановский район Республики Башкортостан"
A60: 3.2 | B60: Документ (Положение), подтверждающий закрепление функции (обязанности) по осуществлению бюджетных полномочий по осуществлению ВМФК за органом ВМФК (ст.6, 152 БК РФ) | C60: да\нет | D60: Да | E60: ПОЛОЖЕНИЕ о Финансовом управлении Администрации муниципального района Нуримановский район Республики Башкортостан Утверждено решением Совета муниципального района Нуримановский район Республики Башкортостан от «13» октября 2011 года №_600 с изменениями от
A61: 3.3 | B61: Документ (постановление), регламентирующий деятельность по осуществлению ВМФК (ст.269.2 БК РФ) | C61: да\нет | D61: Да | E61: Административный регламент исполнения Финансовым управлением администрации муниципального района Нуримановский район Республики Башкортостан муниципальной функции по осуществлению внутреннего муниципального финансового контроля в сфере бюджетных правоотношений, внутреннего муниципального финансового контроля в отношении закупок товаров, работ, услуг для обеспечения муниципальных нужд муниципального района Нуримановский район Республики Башкортостан, утвержден постановлением Администрации МР Нуримановский район РБ от 30 июня 2017 г. №1053
A62: 3.4 | B62: Документ (распоряжение, приказ), необходимый для реализации полномочия по осуществлению ВМФК (п.3 ППРБ от 20.02.2014 № 66, требования МПА) | C62: да\нет | D62: Да | E62: Порядок осуществления органом внутреннего муниципального финансового контроля полномочий по контролю в финансово-бюджетной сфере в муниципальном районе Нуримановский районе Нуримановский район Республики Башкортостан, утвержден Постановлением Администрации МР Нуримановский район от 30.06.2017 г. №1053
A63: 3.5 | B63: Документ (документы), определяющий (ие) стандарты осуществления ВМФК (п.3 ст.269.2 БК РФ) | C63: да\нет | D63: Да | E63: Порядок осуществления органом внутреннего муниципального финансового контроля полномочий по контролю в финансово-бюджетной сфере в муниципальном районе Нуримановский районе Нуримановский район Республики Башкортостан, утвержден Постановлением Администрации МР Нуримановский район от 30.06.2017 г. №1053
A64: 3.6 | B64: Документ, регламентирующий осуществление контроля за полнотой и достоверностью отчетности о реализации муниципальных программ, об исполнении муниципальных заданий (п.1 ст.269.2 БК РФ) | C64: да\нет | D64: Да | E64: Порядок формирования и финансового обеспечения выполнения муниципального задания на оказание муниципальных услуг (выполнение работ) утверждено постановлением Администрации МР Нуримановский район РБ от 29.12.2016г. №2057
A65: 3.7 | B65: Документ (постановление), определяющий порядок осуществления ВФК и ВФА главными администраторами средств местного бюджета (п.5 ст.160.2-1 БК РФ) | C65: да\нет | D65: Да | E65: Порядок осуществления внутреннего финансового контроля и внутреннего финансового аудита в администрации муниципального района Нуримановский район Республики Башкортостан , утвержден постановлением Администрации МР Нуримановский район РБ от 31.12.2015г. №2617
A66: 3.8 | B66: Документ (распоряжение, приказ), определяющий порядок проведения анализа осуществления главными администраторами средств местного бюджета ВФК и ВФА (п.4 ст.157 БК РФ) | C66: да\нет | D66: Да | E66: Порядок проведения анализа осуществления главными распорядителями (распорядителями) средств бюджета МР Нуримановский район РБ, главными администраторами (администраторами) доходов бюджета МР Нуримановский район РБ, главными администраторами (администраторами) источников финансирования дефицита бюджета МР Нуримановский район РБ внутреннего финансового контроля и внутреннего финансового аудита, утвержден постановлением Администрации МР Нуримановский район РБ 28.08. 2015 №1714
A67: 4. Открытость и доступность информации о результатах контрольных мероприятий, проведение мероприятий по предупреждению нарушений бюджетного законодательства
A68: 4.1 | B68: Размещение информации на официальном сайте органа ВМФК | C68: х | D68: х
A69: 4.1.1 | B69: Информации о реквизитах контрольного органа | C69: да\нет | D69: Да
A70: 4.1.2 | B70: Сведений о руководстве органа ВМФК | C70: да\нет | D70: Да
A71: 4.1.3 | B71: Опубликованных отчетов о результатах контроля | C71: да\нет | D71: Да
A72: 4.1.4 | B72: МПА, регламентирующих контрольную деятельность | C72: да\нет | D72: Да
A73: 4.1.5 | B73: Информации о типовых нарушениях и иных разъяснений по вопросам контроля | C73: да\нет | D73: Да
A74: 4.2 | B74: Проведение органами ВМФК мониторинга выявленных нарушений бюджетного законодательства в отчетном периоде | C74: да\нет | D74: Да
A75: 4.3 | B75: Проведение информационной работы по предупреждению нарушений бюджетного законодательства (письма, совещания, аналитические записки и др.) | C75: да\нет | D75: Да
A76: 4.4 | B76: Оказание методической помощи по вопросам контрольной деятельности органам ВМФК поселений, входящих в муниципальный район, главным распорядителям и администраторам средств бюджета МО | C76: да\нет | D76: Да
A78: Заместитель главы администрации - начальник финансового управления | D78: А.Г. Ардаширова
A81: Должность органа руководителя ВМФК | D81: ФИО руководителя ВМФК
D100: ='Показатели качества'!G126 -> 107

Sheet Показатели качества (hidden)
A2: Показатели качества деятельности органов муниципального финансового контроля Республики Башкортостан
A3: № п/п | B3: Показатель | C3: Расчет показателя | D3: Единица измерения | E3: Баллы | F3: Примечание
A4: 1. Качество нормативно-правового обеспечения осуществления внутреннего муниципального финансового контроля
A5: 1.1 | B5: Документ (постановление), подтверждающий возложение полномочий по осуществлению ВМФК на орган ВМФК (ст. 269.2 БК РФ) | C5: Наличие МПА | D5: баллы | E5: 5 | F5: показатель применяется для оценки правового обеспечения деятельности органа ВМФК | G5: =IF('6. Оценка кач-ва'!D59="Да",5,0) -> 5
C6: Отсутствие МПА | D6: баллы | E6: 0
A7: 1.2 | B7: Документ (Положение), подтверждающий закрепление функции (обязанности) по осуществлению бюджетных полномочий по осуществлению ВМФК за органом ВМФК (ст.6, 152 БК РФ) | C7: Наличие МПА | D7: баллы | E7: 5 | F7: показатель применяется для оценки правового обеспечения деятельности органа ВМФК | G7: =IF('6. Оценка кач-ва'!D60="Да",5,0) -> 5
C8: Отсутствие МПА | D8: баллы | E8: 0
A9: 1.3 | B9: Документ (постановление), регламентирующий деятельность по осуществлению ВМФК (п.3 ст. 269.2 БК РФ) | C9: Наличие МПА | D9: баллы | E9: 5 | F9: показатель применяется для оценки правового обеспечения деятельности органа ВМФК | G9: =IF('6. Оценка кач-ва'!D61="Да",5,0) -> 5
C10: Отсутствие МПА | D10: баллы | E10: 0
A11: 1.4 | B11: Документ (распоряжение, приказ), необходимый для реализации полномочия по осуществлению ВМФК (п.3 ППРБ от 20.02.2014 № 66, требования МПА) | C11: Наличие МПА | D11: баллы | E11: 5 | F11: показатель применяется для оценки правового обеспечения деятельности органа ВМФК | G11: =IF('6. Оценка кач-ва'!D62="Да",5,0) -> 5
C12: Отсутствие МПА | D12: баллы | E12: 0
A13: 1.5 | B13: Документ, регламентирующий осуществление контроля за полнотой и достоверностью отчетности о реализации муниципальных программ, об исполнении муниципальных заданий (п.1 ст.269.2 БК РФ) | C13: Наличие МПА | D13: баллы | E13: 5 | F13: показатель применяется для оценки правового обеспечения деятельности органа ВМФК | G13: =IF('6. Оценка кач-ва'!D64="Да",5,0) -> 5
C14: Отсутствие МПА | D14: баллы | E14: 0
A15: 1.6 | B15: Документ (документы), определяющий (ие) стандарты осуществления ВМФК (п.3 ст.269.2 БК РФ) | C15: Наличие МПА | D15: баллы | E15: 5 | F15: показатель применяется для оценки правового обеспечения деятельности органа ВМФК | G15: =IF('6. Оценка кач-ва'!D63="Да",5,0) -> 5
C16: Отсутствие МПА | D16: баллы | E16: 0
A17: 1.7 | B17: Документ (постановление), определяющий порядок осуществления ВФК и ВФА главными администраторами средств местного бюджета (п.5 ст.160.2-1 БК РФ) | C17: Наличие МПА | D17: баллы | E17: 5 | F17: показатель применяется для оценки правового обеспечения деятельности органа ВМФК | G17: =IF('6. Оценка кач-ва'!D65="Да",5,0) -> 5
C18: Отсутствие МПА | D18: баллы | E18: 0
A19: 1.8 | B19: Документ (распоряжение, приказ), определяющий порядок проведения анализа осуществления главными администраторами средств местного бюджета ВФК и ВФА (п.4 ст.157 БК РФ) | C19: Наличие МПА | D19: баллы | E19: 5 | F19: показатель применяется для оценки правового обеспечения деятельности органа ВМФК | G19: =IF('6. Оценка кач-ва'!D66="Да",5,0) -> 5
C20: Отсутствие МПА | D20: баллы | E20: 0
A21: 2. Квалификация и уровень профессиональной подготовки должностных лиц органа внутреннего муниципального финансового контроля
A22: 2.1 | B22: Образование по экономическим специальностям в области финансов и бухгалтерского учета | C22: P = 100*(BCp)/Ч, ВСр – количество должностных лиц, осуществляющих ВМФК, обладающих дипломами высшего и среднего профобразования в области финансов, бухгалтерского учета, анализа и аудита, по экономическим специальностям; Ч – общее количество должностных лиц, осуществляющих ВМФК по состоянию на 1 число месяца, следующим за отчетным периодом | D22: % | G22: =VLOOKUP(H22,Контроль!A95:E195,2,FALSE) -> 5 | H22: =IFERROR(ROUND((('6. Оценка кач-ва'!D23+'6. Оценка кач-ва'!D24)/('6. Оценка кач-ва'!D18+'6. Оценка кач-ва'!D22)*100),0),0) -> 100
C23: Р = 100% | D23: баллы | E23: 5
C24: Р = 75% до <100% | D24: баллы | E24: 4
C25: Р = 50% до <75% | D25: баллы | E25: 3
C26: Р = 40% до <50% | D26: баллы | E26: 2
C27: Р = 25% до <40% | D27: баллы | E27: 1
C28: Р < 25% | D28: баллы | E28: 0
A29: 2.2 | B29: Повышение квалификации по направлению деятельности | C29: Р = 100*Чп/Ч, где, Чп – количество должностных лиц, осуществляющих ВМФК, обладающих свидетельствами (сертификатами) о прохождении повышения квалификации по направлению деятельности в течение последних трех лет; Ч – общее количество должностных лиц, осуществляющих ВМФК по состоянию на 1 число месяца, следующим за отчетным периодом | D29: % | G29: =VLOOKUP(H29,Контроль!A95:E195,3,FALSE) -> 0 | H29: =IFERROR(ROUND('6. Оценка кач-ва'!D25/('6. Оценка кач-ва'!D18+'6. Оценка кач-ва'!D22)*100,0),0) -> 0
C30: Р = 100% | D30: баллы | E30: 5
C31: Р = 75% до <100% | D31: баллы | E31: 4
C32: Р = 60% до <75% | D32: баллы | E32: 3
C33: Р = 45% до <60% | D33: баллы | E33: 2
C34: Р = 30% до <45% | D34: баллы | E34: 1
C35: Р < 30% | D35: баллы | E35: 0
A36: 2.3 | B36: Оснащенность рабочего места | C36: Р = 100*((С+К+П+И)/4)/Ч, С – количество должностных лиц, осуществляющих ВМФК, имеющих отдельный рабочий стол; К – количество должностных лиц, осуществляющих ВМФК имеющих закрепленную компьютерную технику; П – количество должностных лиц, осуществляющих ВМФК имеющие на рабочем месте доступ к программным продуктам (Консультант, Гарант и др.); И – количество должностных лиц, осуществляющих ВМФК имеющих на рабочем месте доступ к интернету | D36: % | G36: =VLOOKUP(H36,Контроль!A95:E195,3,FALSE) -> 5 | H36: =IFERROR(ROUND(('6. Оценка кач-ва'!D26+'6. Оценка кач-ва'!D27+'6. Оценка кач-ва'!D28+'6. Оценка кач-ва'!D29)*25/('6. Оценка кач-ва'!D18+'6. Оценка кач-ва'!D22),0),0) -> 100
C37: Р = 100% | D37: баллы | E37: 5
C38: Р = 75% до <100% | D38: баллы | E38: 4
C39: Р = 60% до <75% | D39: баллы | E39: 3
C40: Р = 45% до <60% | D40: баллы | E40: 2
C41: Р = 30% до <45% | D41: баллы | E41: 1
C42: Р < 30% | D42: баллы | E42: 0
A43: 2.4 | B43: Возложение на должностное лицо, осуществляющее ВМФК других функций, кроме контрольной | C43: Р = 100*Чф/Ч, где, Чф – количество должностных лиц, осуществляющих ВМФК, выполняющие другие функции кроме контрольной; Ч – общее количество должностных лиц, осуществляющих ВМФК по состоянию на 1 число месяца, следующим за отчетным периодом | D43: % | F43: контроль в сфере закупок (ч.8 ст.99 ФЗ № 44-ФЗ) относится к контрольной функции | G43: =VLOOKUP(H43,Контроль!A95:E195,4,FALSE) -> 0 | H43: =IFERROR(ROUND('6. Оценка кач-ва'!D30/('6. Оценка кач-ва'!D18+'6. Оценка кач-ва'!D22)*100,0),0) -> 100
C44: Р < 40% | D44: баллы | E44: 5
C45: Р = 40% до <75% | D45: баллы | E45: 3
C46: Р = 75% до 100% | D46: баллы | E46: 0
A47: 2.5 | B47: Соблюдение профессиональных стандартов и этики служебного поведения | C47: Отсутствие жалоб по контрольной деятельности на должностных лиц, осуществляющих ВМФК | D47: баллы | E47: 5 | G47: =IF('6. Оценка кач-ва'!D31=0,5,0) -> 5
C48: Наличие жалоб по контрольной деятельности на должностных лиц, осуществляющих ВМФК | D48: баллы | E48: 0
A49: 3. Интенсивность и результативность контрольных мероприятий органа внутреннего муниципального финансового контроля
A50: 3.1 | B50: Планирование контрольной деятельности органа ВМФК | C50: Наличие плана контрольных мероприятий на отчетный период | D50: баллы | E50: 5 | G50: =IF('6. Оценка кач-ва'!D32="Да",5,0) -> 5
C51: Отсутствие плана контрольных мероприятий на отчетный период | D51: баллы | E51: 0
A52: 3.2 | B52: Выполнение плана по осуществлению ВМФК | C52: Р = 100*Кз/Кп, Кз – количество проведенных (завершенных) плановых контрольных мероприятий в отчетном периоде; Кп – количество контрольных мероприятий по утвержденному плану | D52: % | G52: =VLOOKUP(H52,Контроль!A95:E195,3,FALSE) -> 0 | H52: =IFERROR(ROUND('6. Оценка кач-ва'!D33/'6. Оценка кач-ва'!D34*100,0),0) -> 0
C53: Р = 100% | D53: баллы | E53: 5
C54: Р = 75% до <100% | D54: баллы | E54: 4
C55: Р = 60% до <75% | D55: баллы | E55: 3
C56: Р = 45% до <60% | D56: баллы | E56: 2
C57: Р = 30% до <45% | D57: баллы | E57: 1
C58: Р < 30% | D58: баллы | E58: 0
A59: 3.3 | B59: Количество контрольных мероприятий по ВМФК, проведенных в муниципальном образовании в отчетном периоде на одно должностное лицо, осуществляющее ВМФК | C59: Р = Кф/Ч, Кф – количество проведенных (завершенных) плановых и внеплановых контрольных мероприятий в отчетном периоде, Ч – общее количество должностных лиц, осуществляющих ВМФК по состоянию на 1 число месяца, следующим за отчетным периодом | D59: ед. | G59: =IF(H59>=9.3,5,IF(H59>=7.7,4,IF(H59>=5.5,3,IF(H59>=3.3,2,IF(H59>=1.6,1,0))))) -> 3 | H59: =IFERROR('6. Оценка кач-ва'!D34/('6. Оценка кач-ва'!D18+'6. Оценка кач-ва'!D22),0) -> 6
C60: Р = ≥Кср. + (70*Кср/100), Кср - среднее количество контрольных мероприятий на одно должностное лицо, осуществляющее ВМФК, в целом по всем муниципальным образованиям, сложившееся по результатам контрольных мероприятий в предшествующем отчетному периоде | D60: баллы | E60: 5 | F60: Кср в 2016 г. = 5,5; 5,5+(70*5,5/100) = 9,3 Кср указывается в запросе Рабочей группы
C61: Р = от ≥Кср + (40*Кср/100) до <Кср + (70*Кср/100) | D61: баллы | E61: 4 | F61: Кср в 2016 г. = 5,5; 5,5+(40*5,5/100) = 7,7
C62: Р = от Кср до <Кср + (40*Кср/100) | D62: баллы | E62: 3 | F62: Кср в 2016 г. = 5,5
C63: Р = от ≥Кср ‑ (40*Кср/100) до <Кср | D63: баллы | E63: 2 | F63: Кср в 2016 г. = 5,5; 5,5-(40*5,5/100) = 3,3
C64: Р = от ≥Кср ‑ (70*Кср/100) до <Кср | D64: баллы | E64: 1 | F64: Кср в 2016 г. = 5,5; 5,5-(70*5,5/100) = 1,6
C65: Р= 0 до <Кср ‑ (70*Кср/100) | D65: баллы | E65: 0 | F65: Кср в 2016 г. = 5,5
A66: 3.4 | B66: Результативность контрольных мероприятий | C66: Р = 100*Кр/К, Кр – количество результативных контрольных мероприятий проведенных в отчетном периоде, К – общее количество контрольных мероприятий проведенных в отчетном периоде | D66: % | F66: результативное мероприятие – мероприятие, в котором выявлены финансовые и нефинансовые нарушения | G66: =VLOOKUP(H66,Контроль!A95:E195,3,FALSE) -> 5 | H66: =IFERROR(ROUND(100*'6. Оценка кач-ва'!D37/'6. Оценка кач-ва'!D34,0),0) -> 100
C67: Р = 100% | D67: баллы | E67: 5
C68: Р = 75% до <100% | D68: баллы | E68: 4
C69: Р = 60% до <75% | D69: баллы | E69: 3
C70: Р = 45% до <60% | D70: баллы | E70: 2
C71: Р = 30% до <45% | D71: баллы | E71: 1
C72: Р = <30% | D72: баллы | E72: 0
A73: 3.5 | B73: Эффективность контрольных мероприятий | C73: Р = 100*Км/К, Км – количество контрольных мероприятий, по которым объекту контроля направлены представления, предписания, заключения, уведомления, письма, служебные записки, К – общее количество контрольных мероприятий проведенных в отчетном периоде | G73: =VLOOKUP(H73,Контроль!A95:E195,3,FALSE) -> 4 | H73: =IFERROR(ROUND('6. Оценка кач-ва'!D38/'6. Оценка кач-ва'!D34*100,0),0) -> 83
C74: Р = 100% | D74: баллы | E74: 5
C75: Р = 75% до <100% | D75: баллы | E75: 4
C76: Р = 60% до <75% | D76: баллы | E76: 3
C77: Р = 45% до <60% | D77: баллы | E77: 2
C78: Р = 30% до <45% | D78: баллы | E78: 1
C79: Р = <30% | D79: баллы | E79: 0
A80: 3.6 | B80: Исполнительность мер, предъявленных по результатам контрольных мероприятий | C80: Р = 100*Км/К, Км – количество контрольных мероприятий, по которым приняты меры по предъявленным представлениям, предписаниям, заключениям, уведомлениям, письмам, служебным запискам, К – общее количество контрольных мероприятий, по которым объекту контроля направлены представления, предписания, заключения, уведомления, письма, служебные записки | F80: показатель рассчитывается с учетом пояснений органа ВМФК | G80: =VLOOKUP(H80,Контроль!A95:E195,5,FALSE) -> 5 | H80: =IFERROR(ROUND('6. Оценка кач-ва'!D39/'6. Оценка кач-ва'!D38*100,0),0) -> 100
C81: Р = 80% до 100% | D81: баллы | E81: 5
C82: Р = 40% до <80% | D82: баллы | E82: 3
C83: Р = 20% до <40% | D83: баллы | E83: 1
C84: Р = <20% | D84: баллы | E84: 0
A85: 3.7 | B85: Эффективность мер, предъявленных по результатам контрольных мероприятий | C85: Р = 100*Св/Сн, Св – объемы денежных средств, взысканные (восстановленные) в доход бюджета муниципального образования, Сн – объемы денежных средств, подлежащие взысканию (восстановлению) в доход бюджета муниципального образования | D85: % | G85: =VLOOKUP(H85,Контроль!A95:E195,3,FALSE) -> 0 | H85: =IFERROR(ROUND('6. Оценка кач-ва'!D43/'6. Оценка кач-ва'!D42*100,0),0) -> 0
C86: Р = 100% | D86: баллы | E86: 5
C87: Р = 75% до <100% | D87: баллы | E87: 4
C88: Р = 60% до <75% | D88: баллы | E88: 3
C89: Р = 45% до <60% | D89: баллы | E89: 2
C90: Р = 30% до <45% | D90: баллы | E90: 1
C91: Р = <30% | D91: баллы | E91: 0
A92: 3.8 | B92: Эффективность реализации материалов | C92: Р = 100*Пн/Поб, Пн - количество признанных судами незаконными предписаний и представлений, Поб - общее количество предписаний и представлений | D92: % | G92: =5-VLOOKUP(H92,Контроль!A95:E195,3,FALSE) -> 5 | H92: =IFERROR(ROUND('6. Оценка кач-ва'!D45/'6. Оценка кач-ва'!D44*100,0),0) -> 0
C93: Р = 100% | D93: баллы | E93: 0
C94: Р = 75% до <100% | D94: баллы | E94: 1
C95: Р = 60% до <75% | D95: баллы | E95: 2
C96: Р = 45% до <60% | D96: баллы | E96: 3
C97: Р = 30% до <45% | D97: баллы | E97: 4
C98: Р = 0% до <30% | D98: баллы | E98: 5
A99: 3.9 | B99: Эффективность административного производства по делам об АП | C99: Наличие составленных протоколов об административном правонарушении | D99: баллы | E99: 5 | G99: =IF('6. Оценка кач-ва'!D46>0,5,0) -> 0
C100: Отсутствие составленных протоколов об административном правонарушении | D100: баллы | E100: 0
A101: 3.10 | B101: Эффективность работы по направлению уведомлений по бюджетным мерам принуждения | C101: Р = 100*Ув/У, Ув - возвращенные уведомления по причине неправильной квалификации фактов нарушений и нарушения сроков направления уведомлений, установленных БК РФ, У - общее количество направленных уведомлений | D101: % | G101: =5-VLOOKUP(H101,Контроль!A95:E195,3,FALSE) -> 5 | H101: =IFERROR(ROUND('6. Оценка кач-ва'!D52/'6. Оценка кач-ва'!D51*100,0),0) -> 0
C102: Р = 100% | D102: баллы | E102: 0
C103: Р = 75% до <100% | D103: баллы | E103: 1
C104: Р = 60% до <75% | D104: баллы | E104: 2
C105: Р = 45% до <60% | D105: баллы | E105: 3
C106: Р = 30% до <45% | D106: баллы | E106: 4
C107: Р = 0% до <30% | D107: баллы | E107: 5
A108: 4. Открытость, доступность и креативность контрольной деятельности
A109: 4.1* | B109: Размещение информации на официальном сайте органа ВМФК | C109: Общий балл | D109: баллы | F109: общий балл определяется путем суммирования баллов по п.4.1.1-4.1.5 | G109: =SUM(G110:G124) -> 20
A110: 4.1.1 | C110: Наличие информации о реквизитах контрольного органа | D110: баллы | E110: 1 | G110: =IF('6. Оценка кач-ва'!D69="Да",1,0) -> 1
C111: Отсутствие информации о реквизитах контрольного органа | D111: баллы | E111: 0
A112: 4.1.2 | C112: Наличие сведений о руководстве органа ВМФК | D112: баллы | E112: 1 | G112: =IF('6. Оценка кач-ва'!D70="Да",1,0) -> 1
C113: Отсутствие сведений о руководстве органа ВМФК | D113: баллы | E113: 0
A114: 4.1.3 | C114: Наличие опубликованных отчетов о результатах контрольной деятельности | D114: баллы | E114: 1 | G114: =IF('6. Оценка кач-ва'!D71="Да",1,0) -> 1
C115: Отсутствие опубликованных отчетов о результатах контрольной деятельности | D115: баллы | E115: 0
A116: 4.1.4 | C116: Наличие МПА, регламентирующих контрольную деятельность | D116: баллы | E116: 1 | G116: =IF('6. Оценка кач-ва'!D72="Да",1,0) -> 1
C117: Отсутствие МПА, регламентирующих контрольную деятельность | D117: баллы | E117: 0
A118: 4.1.5 | C118: Наличие информации о типовых нарушениях и иных разъяснений по вопросам контроля | D118: баллы | E118: 1 | G118: =IF('6. Оценка кач-ва'!D73="Да",1,0) -> 1
C119: Отсутствие информации о типовых нарушениях и иных разъяснений по вопросам контроля | D119: баллы | E119: 0
A120: 4.2 | B120: Проведение органами ВМФК мониторинга выявленных нарушений бюджетного законодательства в отчетном периоде | C120: Наличие результатов мониторинга | D120: баллы | E120: 5 | G120: =IF('6. Оценка кач-ва'!D74="Да",5,0) -> 5
C121: Отсутствие результатов мониторинга | D121: баллы | E121: 0
A122: 4.3 | B122: Проведение информационной работы по предупреждению нарушений бюджетного законодательства (письма, совещания, аналитические записки, др.) | C122: Наличие информационной работы по предупреждению нарушений | D122: баллы | E122: 5 | G122: =IF('6. Оценка кач-ва'!D75="Да",5,0) -> 5
C123: Отсутствие информационной работы по предупреждению нарушений | D123: баллы | E123: 0
A124: 4.4 | B124: Оказание методической помощи по вопросам контрольной деятельности органам ВМФК поселений, входящих в муниципальный район, главным распорядителям и администраторам средств бюджета МО | C124: Наличие методической помощи органам ВМФК поселений | D124: баллы | E124: 5 | G124: =IF('6. Оценка кач-ва'!D76="Да",5,0) -> 5
C125: Отсутствие методической помощи органам ВМФК поселений | D125: баллы | E125: 0
G126: =SUM(G5:G109) -> 107

Sheet Контроль (hidden)
A1: Уровень | C1: Платформа для отчетности
A2: Государственный | C2: БашФин
A3: Муниципальный | C3: Excel
A5: Дата
A6: 1 апреля
A7: 1 июля
A8: 1 октября
A9: 1 января
A11: Год
A12: 2017 года
A13: 2018 года
A14: 2019 года
A15: 2020 года
A16: 2021 года
A17: 2022 года
A18: 2023 года
A19: 2024 года
C20: Не используется
A21: МО | C21: ГРБС
A22: ГО г. Агидель РБ | C22: Агентство по печати РБ
A23: ГО г. Кумертау РБ | C23: Госкомитет РБ по делам юстиции
A24: ГО г. Нефтекамск РБ | C24: Госкомитет РБ по информатизации и вопросам функционирования системы «Открытая Республика»
A25: ГО г. Октябрьский РБ | C25: Госкомитет РБ по строительству и архитектуре
A26: ГО г. Салават РБ | C26: Госкомитет РБ по торговле и защите прав потребителей
A27: ГО г. Сибай РБ | C27: Госкомитет РБ по транспорту и дорожному хозяйству
A28: ГО г. Стерлитамак РБ | C28: Госкомитет РБ по чрезвычайным ситуациям
A29: ГО г. Уфа РБ | C29: Государственное бюджетное научное учреждение "Академия наук РБ"
A30: ЗАТО г. Межгорье РБ | C30: Министерство жилищно-коммунального хозяйства РБ
A31: МР Абзелиловский район РБ | C31: Министерство здравоохранения РБ
A32: МР Альшеевский район РБ | C32: Министерство земельных и имущественных отношений РБ
A33: МР Архангельский район РБ | C33: Министерство культуры РБ
A34: МР Аскинский район РБ | C34: Министерство лесного хозяйства РБ
A35: МР Аургазинский район РБ | C35: Министерство молодежной политики и спорта РБ
A36: МР Баймакский район РБ | C36: Министерство образования РБ
A37: МР Бакалинский район РБ | C37: Министерство природопользования и экологии РБ
A38: МР Балтачевский район РБ | C38: Министерство промышленности и инновационной политики РБ
A39: МР Белебеевский район РБ | C39: Министерство сельского хозяйства РБ
A40: МР Белокатайский район РБ | C40: Министерство труда и социальной защиты населения РБ
A41: МР Белорецкий район РБ | C41: Министерство экономического развития РБ
A42: МР Бижбулякский район РБ | C42: Управление ветеринарии РБ
A43: МР Бирский район РБ | C43: Управление делами Главы РБ
A44: МР Благоварский район РБ | C44: Управление по государственной охране объектов культурного наследия Республики Башкортостан
A45: МР Благовещенский район РБ | C45: Управление по делам архивов РБ
A46: МР Буздякский район РБ
A47: МР Бураевский район РБ
A48: МР Бурзянский район РБ
A49: МР Гафурийский район РБ
A50: МР Давлекановский район РБ
A51: МР Дуванский район РБ
A52: МР Дюртюлинский район РБ
A53: МР Ермекеевский район РБ
A54: МР Зианчуринский район РБ
A55: МР Зилаирский район РБ
A56: МР Иглинский район РБ
A57: МР Илишевский район РБ
A58: МР Ишимбайский район РБ
A59: МР Калтасинский район РБ
A60: МР Караидельский район РБ
A61: МР Кармаскалинский район РБ
A62: МР Кигинский район РБ
A63: МР Краснокамский район РБ
A64: МР Кугарчинский район РБ
A65: МР Кушнаренковский район РБ
A66: МР Куюргазинский район РБ
A67: МР Мелеузовский район РБ
A68: МР Мечетлинский район РБ
A69: МР Мишкинский район РБ
A70: МР Миякинский район РБ
A71: МР Нуримановский район РБ
A72: МР Салаватский район РБ
A73: МР Стерлибашевский район РБ
A74: МР Стерлитамакский район РБ
A75: МР Татышлинский район РБ
A76: МР Туймазинский район РБ
A77: МР Уфимский район РБ
A78: МР Учалинский район РБ
A79: МР Федоровский район РБ
A80: МР Хайбуллинский район РБ
A81: МР Чекмагушевский район РБ
A82: МР Чишминский район РБ
A83: МР Шаранский район РБ
A84: МР Янаульский район РБ
A89: Для показателей качества
A90: Да
A91: Нет
B93: Пункты: 2.1 | C93: Пункты: 2.2, 2.3, 3.2, 3.4, 3.5, 3.7, 3.8, 3.10 | D93: Пункты: 2.4 | E93: Пункты: 3.6
A94: ВПР-% | B94: ВПР-Баллы | C94: ВПР-Баллы | D94: ВПР-Баллы | E94: ВПР-Баллы
A95: 0 | B95: 0 | C95: 0 | D95: 5 | E95: 0
A96: 1 | B96: 0 | C96: 0 | D96: 5 | E96: 0
A97: 2 | B97: 0 | C97: 0 | D97: 5 | E97: 0
A98: 3 | B98: 0 | C98: 0 | D98: 5 | E98: 0
A99: 4 | B99: 0 | C99: 0 | D99: 5 | E99: 0
A100: 5 | B100: 0 | C100: 0 | D100: 5 | E100: 0
A101: 6 | B101: 0 | C101: 0 | D101: 5 | E101: 0
A102: 7 | B102: 0 | C102: 0 | D102: 5 | E102: 0
A103: 8 | B103: 0 | C103: 0 | D103: 5 | E103: 0
A104: 9 | B104: 0 | C104: 0 | D104: 5 | E104: 0
A105: 10 | B105: 0 | C105: 0 | D105: 5 | E105: 0
A106: 11 | B106: 0 | C106: 0 | D106: 5 | E106: 0
A107: 12 | B107: 0 | C107: 0 | D107: 5 | E107: 0
A108: 13 | B108: 0 | C108: 0 | D108: 5 | E108: 0
A109: 14 | B109: 0 | C109: 0 | D109: 5 | E109: 0
A110: 15 | B110: 0 | C110: 0 | D110: 5 | E110: 0
A111: 16 | B111: 0 | C111: 0 | D111: 5 | E111: 0
A112: 17 | B112: 0 | C112: 0 | D112: 5 | E112: 0
A113: 18 | B113: 0 | C113: 0 | D113: 5 | E113: 0
A114: 19 | B114: 0 | C114: 0 | D114: 5 | E114: 0
A115: 20 | B115: 0 | C115: 0 | D115: 5 | E115: 1
A116: 21 | B116: 0 | C116: 0 | D116: 5 | E116: 1
A117: 22 | B117: 0 | C117: 0 | D117: 5 | E117: 1
A118: 23 | B118: 0 | C118: 0 | D118: 5 | E118: 1
A119: 24 | B119: 0 | C119: 0 | D119: 5 | E119: 1
A120: 25 | B120: 1 | C120: 0 | D120: 5 | E120: 1
A121: 26 | B121: 1 | C121: 0 | D121: 5 | E121: 1
A122: 27 | B122: 1 | C122: 0 | D122: 5 | E122: 1
A123: 28 | B123: 1 | C123: 0 | D123: 5 | E123: 1
A124: 29 | B124: 1 | C124: 0 | D124: 5 | E124: 1
A125: 30 | B125: 1 | C125: 1 | D125: 5 | E125: 1
A126: 31 | B126: 1 | C126: 1 | D126: 5 | E126: 1
A127: 32 | B127: 1 | C127: 1 | D127: 5 | E127: 1
A128: 33 | B128: 1 | C128: 1 | D128: 5 | E128: 1
A129: 34 | B129: 1 | C129: 1 | D129: 5 | E129: 1
A130: 35 | B130: 1 | C130: 1 | D130: 5 | E130: 1
A131: 36 | B131: 1 | C131: 1 | D131: 5 | E131: 1
A132: 37 | B132: 1 | C132: 1 | D132: 5 | E132: 1
A133: 38 | B133: 1 | C133: 1 | D133: 5 | E133: 1
A134: 39 | B134: 1 | C134: 1 | D134: 5 | E134: 1
A135: 40 | B135: 2 | C135: 1 | D135: 3 | E135: 3
A136: 41 | B136: 2 | C136: 1 | D136: 3 | E136: 3
A137: 42 | B137: 2 | C137: 1 | D137: 3 | E137: 3
A138: 43 | B138: 2 | C138: 1 | D138: 3 | E138: 3
A139: 44 | B139: 2 | C139: 1 | D139: 3 | E139: 3
A140: 45 | B140: 2 | C140: 2 | D140: 3 | E140: 3
A141: 46 | B141: 2 | C141: 2 | D141: 3 | E141: 3
A142: 47 | B142: 2 | C142: 2 | D142: 3 | E142: 3
A143: 48 | B143: 2 | C143: 2 | D143: 3 | E143: 3
A144: 49 | B144: 2 | C144: 2 | D144: 3 | E144: 3
A145: 50 | B145: 3 | C145: 2 | D145: 3 | E145: 3
A146: 51 | B146: 3 | C146: 2 | D146: 3 | E146: 3
A147: 52 | B147: 3 | C147: 2 | D147: 3 | E147: 3
A148: 53 | B148: 3 | C148: 2 | D148: 3 | E148: 3
A149: 54 | B149: 3 | C149: 2 | D149: 3 | E149: 3
A150: 55 | B150: 3 | C150: 2 | D150: 3 | E150: 3
A151: 56 | B151: 3 | C151: 2 | D151: 3 | E151: 3
A152: 57 | B152: 3 | C152: 2 | D152: 3 | E152: 3
A153: 58 | B153: 3 | C153: 2 | D153: 3 | E153: 3
A154: 59 | B154: 3 | C154: 2 | D154: 3 | E154: 3
A155: 60 | B155: 3 | C155: 3 | D155: 3 | E155: 3
A156: 61 | B156: 3 | C156: 3 | D156: 3 | E156: 3
A157: 62 | B157: 3 | C157: 3 | D157: 3 | E157: 3
A158: 63 | B158: 3 | C158: 3 | D158: 3 | E158: 3
A159: 64 | B159: 3 | C159: 3 | D159: 3 | E159: 3
A160: 65 | B160: 3 | C160: 3 | D160: 3 | E160: 3
A161: 66 | B161: 3 | C161: 3 | D161: 3 | E161: 3
A162: 67 | B162: 3 | C162: 3 | D162: 3 | E162: 3
A163: 68 | B163: 3 | C163: 3 | D163: 3 | E163: 3
A164: 69 | B164: 3 | C164: 3 | D164: 3 | E164: 3
A165: 70 | B165: 3 | C165: 3 | D165: 3 | E165: 3
A166: 71 | B166: 3 | C166: 3 | D166: 3 | E166: 3
A167: 72 | B167: 3 | C167: 3 | D167: 3 | E167: 3
A168: 73 | B168: 3 | C168: 3 | D168: 3 | E168: 3
A169: 74 | B169: 3 | C169: 3 | D169: 3 | E169: 3
A170: 75 | B170: 4 | C170: 4 | D170: 0 | E170: 3
A171: 76 | B171: 4 | C171: 4 | D171: 0 | E171: 3
A172: 77 | B172: 4 | C172: 4 | D172: 0 | E172: 3
A173: 78 | B173: 4 | C173: 4 | D173: 0 | E173: 3
A174: 79 | B174: 4 | C174: 4 | D174: 0 | E174: 3
A175: 80 | B175: 4 | C175: 4 | D175: 0 | E175: 5
A176: 81 | B176: 4 | C176: 4 | D176: 0 | E176: 5
A177: 82 | B177: 4 | C177: 4 | D177: 0 | E177: 5
A178: 83 | B178: 4 | C178: 4 | D178: 0 | E178: 5
A179: 84 | B179: 4 | C179: 4 | D179: 0 | E179: 5
A180: 85 | B180: 4 | C180: 4 | D180: 0 | E180: 5
A181: 86 | B181: 4 | C181: 4 | D181: 0 | E181: 5
A182: 87 | B182: 4 | C182: 4 | D182: 0 | E182: 5
A183: 88 | B183: 4 | C183: 4 | D183: 0 | E183: 5
A184: 89 | B184: 4 | C184: 4 | D184: 0 | E184: 5
A185: 90 | B185: 4 | C185: 4 | D185: 0 | E185: 5
A186: 91 | B186: 4 | C186: 4 | D186: 0 | E186: 5
A187: 92 | B187: 4 | C187: 4 | D187: 0 | E187: 5
A188: 93 | B188: 4 | C188: 4 | D188: 0 | E188: 5
A189: 94 | B189: 4 | C189: 4 | D189: 0 | E189: 5
A190: 95 | B190: 4 | C190: 4 | D190: 0 | E190: 5
A191: 96 | B191: 4 | C191: 4 | D191: 0 | E191: 5
A192: 97 | B192: 4 | C192: 4 | D192: 0 | E192: 5
A193: 98 | B193: 4 | C193: 4 | D193: 0 | E193: 5
A194: 99 | B194: 4 | C194: 4 | D194: 0 | E194: 5
A195: 100 | B195: 5 | C195: 5 | D195: 0 | E195: 5
